Cogmind - Beta 16 @@@ ROGUE MODE // 2025.11.04 @ 01:47:12 Player: Cogchaaaan Result: Escaped! Performance ------------- Evolutions (9) 4500 Regions Visited (30) 6000 Robots Destroyed (538) 2690 Value Destroyed (32013) 32013 Prototype IDs (374) 7480 Alien Tech Used (8) 1600 Bonus (59603) 59603 TOTAL SCORE: 113886 Bonus ------- Triggered High Security 1000 High Alert Combat Kills 12514 Follower Combat Kills 273 Registered with UFD 300 Met Optimus in HQ 500 Met Imprinter 300 Met Zhirov 300 Met Warlord at Base 500 MAIN.C Attacked Warlord 500 Warlord Defense Kills 1852 Acquired SGEMP 2000 Met Optimus at Protoforge 1000 Delivered SGEMP 2000 Recovered Sigix Corpse 2000 Destroyed MAIN.C Guards 500 Met MAIN.C 5000 Destroyed MAIN.C Shell 5000 Zhirov Destroyed MAIN.C 3000 Met Architect 300 Started Test 138-B 500 Destroyed A8 300 Destroyed A6 400 Destroyed A5 500 Destroyed A4 700 Destroyed A3 800 Destroyed A2 1000 Destroyed Architect 15000 Win 3000 Friendly Fire -1436 Cogmind --------- Core Integrity 634/1600 Matter 300/300 Energy 448/480 System Corruption 1% Temperature Cool (6) Movement Hovering (27) Location To Epsilon Eridani Parts ------- > --- POWER (4) -------- Zero-point Reactor Concept Zero-point Core (fused) Concept Zero-point Core > --- PROPULSION (8) --- Cooled Antigrav System Cooled Antigrav System Experimental Gyrokinetic Inverter Cooled Linear Gravjet Concept Combat Aerolev Unit Concept Combat Aerolev Unit (fused) Concept Gyrokinetic System Concept Gyrokinetic System > --- UTILITY (10) ----- Desublimator Concept Antigrav Storage Unit Quantum Shading Machine Spectral Analyzer Concept Weapon Articulator Experimental Core Analyzer Experimental Weapon Cycler Heavy Regenerative Plating Concept Energy Mantle > --- WEAPON (4) ------- Concept Heavy Railcannon > --- INVENTORY (25) --- Concept Zero-point Core Cooled Antigrav System Combat Antigrav System Experimental Matter Compressor (500) Concept Weapon Articulator Experimental Weapon Cycler Heavy Regenerative Plating Graphene Brace AEGIS Remote Shield Concept Matter Streamer Concept Impact Drone Bay (0/6) Integrity Redistributor Concept Plasma Driver Hypervelocity Linear Accelerator Hypervelocity Linear Accelerator Perforator Sigix Corpse Peak State ------------ > --- POWER ------------ Concept Zero-point Core Concept Zero-point Core Concept Zero-point Core > --- PROPULSION ------- Experimental Antigrav System Experimental Antigrav System Gravjet Array Concept Combat Aerolev Unit Concept Combat Aerolev Unit Concept Gyrokinetic System Concept Gyrokinetic System > --- UTILITY ---------- Concept Antigrav Storage Unit Experimental Optical Array Concept Weapon Articulator Concept Core Analysis Suite Concept Reaction Jets Advanced Phase Shifter Concept Cloak Mesh Layered Heavy Armor Plating Concept Beam Splitter > --- WEAPON ----------- Concept Heavy Railcannon Sigix Broadsword > --- INVENTORY -------- Concept Thermoelectric Network Concept NT7 Matterbank Concept Weapon Articulator Precision Matter Filter Experimental Kinecellerator Experimental Weapon Shielding Experimental Weapon Shielding Graphene Brace Concept Energy Mantle Concept Energy Mantle Concept Antimissile System Concept Matter Streamer Concept Impact Drone Bay Transdimensional Reconstructor Concept Disintegration Ray Compact HERF Cannon Concept Plasma Driver Concept Heavy Railcannon Enhanced Gamma Bomb Array Experimental Neutron Missile Launcher [Rating: 305] Favorites ----------- Power Concept Zero-point Core Engine Improved Ion Engine Power Core Concept Zero-point Core Reactor Micro Antimatter Reactor Propulsion Improved Flight Unit Treads Light Treads Leg Aluminum Leg Wheel Compact Wheel Hover Unit Concept Gyrokinetic System Flight Unit Improved Flight Unit Utility Concept Antigrav Storage Unit Device Concept Weapon Articulator Storage Concept Antigrav Storage Unit Processor Experimental Optical Array Hackware System Mapper Protection Layered Heavy Armor Plating Weapon Enhanced Autogun Energy Gun Vortex Rail Energy Cannon Concept Plasma Driver Ballistic Gun Enhanced Autogun Ballistic Cannon Concept Heavy Railcannon Launcher Experimental Neutron Missile Launcher Special Weapon CPS Tube Impact Weapon Makeshift Hammer Slashing Weapon Sigix Broadsword Piercing Weapon Experimental Jetlance Build | -11 -10 -10 -9 -9 -9 -9 -6 -6 -6 -6 -5 -5 -5 -5 -5 -5 -5 -4 -4 -4 -4 -3 -3 -3 -3 -2 -2 -1 -1 -1 ------- Run | Yrd Mat Min Mat Sto Rec Scr Fac Low Low Zio Pro Fac Was Fac Upp Upp Zhi Pro Fac Upp War Pro Res Qua Frg Res Tes Acc Com Ac0 Slots Evolved 18 | . . . 2 . . . 6 . . . . 2 . . . . . . 2 . . . 2 . . 2 . 2 . . Power 2 | . . . . . . . . . . . . . . . . . . . . . . . 1 . . . . 1 . . Propulsion 6 | . . . 1 . . . 2 . . . . 1 . . . . . . 1 . . . 1 . . . . . . . Utility 8 | . . . . . . . 4 . . . . 1 . . . . . . 1 . . . . . . 1 . 1 . . Weapon 2 | . . . 1 . . . . . . . . . . . . . . . . . . . . . . 1 . . . . Parts Attached 235 | 7 6 2 35 7 6 3 17 . . 1 2 6 4 2 . . 3 . 4 . 9 1 2 2 73 2 6 6 14 15 Power 25 | 1 1 1 4 1 1 1 1 . . . . . . 1 . . . . . . 2 . 1 . 9 . . . 1 . Engine 10 | 1 1 1 4 1 1 1 . . . . . . . . . . . . . . . . . . . . . . . . Core 6 | . . . . . . . 1 . . . . . . 1 . . . . . . 1 . . . 3 . . . . . Reactor 9 | . . . . . . . . . . . . . . . . . . . . . 1 . 1 . 6 . . . 1 . Propulsion 60 | 2 2 . 14 5 4 . 5 . . . . 1 1 . . . . . 1 . 1 . 1 . 18 . . . . 5 Treads 20 | . 2 . 13 5 . . . . . . . . . . . . . . . . . . . . . . . . . . Leg 2 | 2 . . . . . . . . . . . . . . . . . . . . . . . . . . . . . . Wheel 4 | . . . . . 4 . . . . . . . . . . . . . . . . . . . . . . . . . Hover 19 | . . . . . . . . . . . . . . . . . . . . . . . . . 14 . . . . 5 Flight 15 | . . . 1 . . . 5 . . . . 1 1 . . . . . 1 . 1 . 1 . 4 . . . . . Utility 99 | 2 2 . 7 . . 1 9 . . . . 4 1 . . . 3 . 3 . 4 . . 1 34 1 4 6 9 8 Device 49 | 1 1 . 1 . . 1 3 . . . . 3 . . . . . . 1 . 3 . . . 16 1 3 5 4 6 Storage 10 | 1 1 . 3 . . . 1 . . . . . . . . . . . . . . . . . 3 . . . . 1 Processor 14 | . . . . . . . 1 . . . . 1 1 . . . . . 2 . . . . . 6 . . . 3 . Hackware 5 | . . . . . . . 2 . . . . . . . . . 2 . . . . . . 1 . . . . . . Protection 21 | . . . 3 . . . 2 . . . . . . . . . 1 . . . 1 . . . 9 . 1 1 2 1 Artifact . | . . . . . . . . . . . . . . . . . . . . . . . . . . . . . . . Weapon 51 | 2 1 1 10 1 1 1 2 . . 1 2 1 2 1 . . . . . . 2 1 . 1 12 1 2 . 4 2 Energy Gun 4 | . . . . . . . . . . . . . . . . . . . . . 2 . . . 1 . 1 . . . Energy Cannon 7 | . . . . 1 . . . . . . 1 1 . 1 . . . . . . . . . . 1 . 1 . 1 . Ballistic Gun 20 | 2 1 1 9 . 1 . . . . . . . . . . . . . . . . . . . 6 . . . . . Ballistic Cannon 6 | . . . . . . . 1 . . . . . . . . . . . . . . . . . . 1 . . 2 2 Launcher 5 | . . . . . . . 1 . . 1 1 . . . . . . . . . . 1 . . 1 . . . . . Special Weapon 2 | . . . . . . . . . . . . . 2 . . . . . . . . . . . . . . . . . Impact Weapon 1 | . . . 1 . . . . . . . . . . . . . . . . . . . . . . . . . . . Slashing Weapon 2 | . . . . . . 1 . . . . . . . . . . . . . . . . . 1 . . . . . . Piercing Weapon 4 | . . . . . . . . . . . . . . . . . . . . . . . . . 3 . . . 1 . Special Melee Weapon . | . . . . . . . . . . . . . . . . . . . . . . . . . . . . . . . Unidentified Prototypes 45 | . . . 3 2 . 1 1 . . 1 . . . . . . 2 . . . 6 1 . 3 17 . 2 . 4 2 Corrupted Parts 3 | . . . . . . . . . . . . . . . . . . . . . . . . . . . . . 3 . System Corruption 11 | . . . . . . . . . . . . . . . . . . . . . . . . . . . . . 11 . Parts Lost 57 | . 4 3 3 . 1 . . . . . . . . . . 2 . . . . 2 . 1 . 20 . . 1 7 13 Power 9 | . 1 1 1 . . . . . . . . . . . . . . . . . 1 . 1 . 4 . . . . . Propulsion 14 | . 1 . . . 1 . . . . . . . . . . . . . . . . . . . 8 . . . . 4 Utility 20 | . 1 1 1 . . . . . . . . . . . . 1 . . . . . . . . 2 . . 1 5 8 Weapon 14 | . 1 1 1 . . . . . . . . . . . . 1 . . . . 1 . . . 6 . . . 2 1 Highest Loss Streak 4 | . 4 3 1 . 1 . . . . . . . . . . 2 . . . . 1 . 1 . 3 . . 1 4 2 To Critical Strikes 1 | . . . . . . . . . . . . . . . . . . . . . . . . . . . . . . 1 Average Backups 15 | 3 6 7 12 23 22 18 10 9 10 10 9 9 9 8 9 8 8 9 9 11 13 11 10 10 14 20 21 21 20 16 Power . | . . . . . . 1 1 1 1 1 1 1 1 1 1 . 1 1 1 2 1 1 . 1 . 1 1 . 1 1 Propulsion 2 | 1 1 1 3 9 8 7 2 2 2 2 2 1 1 . 1 1 1 1 1 1 2 3 2 1 . . . . . 1 Utility 7 | . 2 3 4 8 8 7 2 2 2 2 2 2 3 3 3 3 2 2 2 3 3 4 4 4 9 12 14 14 12 8 Weapon 3 | 1 2 2 3 4 3 1 1 1 2 2 1 1 2 1 2 1 2 2 1 2 2 1 2 1 3 5 5 5 5 4 Tool/Special . | . . . . . . . . . . . . . . . . . . . . . . . . . . . . . . . Unused Backups 66 | . 2 . 3 7 4 1 1 1 . . . 2 . . . . . . . . 1 . . . 29 1 2 . 3 9 Power 3 | . . . . 1 . . . . . . . . . . . . . . . . . . . . 1 . . . 1 . Propulsion 24 | . . . 1 6 2 . . . . . . 1 . . . . . . . . . . . . 11 . 1 . . 2 Utility 29 | . 1 . . . 2 1 1 1 . . . . . . . . . . . . 1 . . . 14 1 1 . 1 5 Weapon 7 | . 1 . 2 . . . . . . . . . . . . . . . . . . . . . 2 . . . 1 1 Tool/Special 3 | . . . . . . . . . . . . 1 . . . . . . . . . . . . 1 . . . . 1 Average Slot Usage (%) 84 | . 90 89 98 99 98 77 82 86 86 86 86 87 91 92 94 90 85 88 83 84 84 84 84 87 74 81 81 80 80 77 Engine 3 | . 13 14 10 10 11 11 1 . . . . . . . . . . . . . . . 2 . . . . . . . Core 4 | . . . . . . . 4 6 6 6 6 5 5 5 5 5 5 5 5 5 5 5 . 4 . 8 8 11 11 7 Reactor 1 | . . . . . . . . . . . . . . . . . . . . . . . 3 4 6 . . . . 2 Treads 6 | . 16 28 32 33 15 . . . . . . . . . . . . . . . . . . . . . . . . . Wheel 2 | . . . . . 17 33 . . . . . . . . . . . . . . . . . . . . . . . . Hover 11 | . . . . . . . . . . . . . . . . . . . . . . . . . 15 30 30 28 28 29 Flight 7 | . . . . . . . 31 33 33 33 33 35 35 35 35 35 35 35 30 31 31 31 33 33 6 . . . . . Device 9 | . 5 3 . . . . 9 13 13 13 13 14 11 11 11 10 11 11 10 10 10 10 9 8 8 12 13 16 18 17 Storage 6 | . 14 14 11 11 11 11 6 6 6 6 6 5 5 5 5 5 5 5 5 5 5 5 4 4 4 4 4 4 4 3 Processor 5 | . . . . . . . 5 6 6 6 6 6 12 11 11 8 5 5 8 10 10 10 9 9 11 8 8 8 5 7 Hackware 2 | . . . . . . . 5 6 6 6 6 5 5 5 5 5 8 11 10 10 10 10 9 13 6 4 4 . . . Protection 5 | . . . 9 11 11 11 6 6 6 6 6 5 2 5 5 5 4 5 5 5 5 5 4 . 4 4 4 4 7 3 Ballistic Gun 8 | . 27 28 32 32 31 . . . . . . . . . . . . . . . . . . . 1 . . . . . Slashing Weapon 2 | . . . . . . 1 6 6 6 6 6 5 5 5 5 5 5 5 5 5 5 5 3 5 1 4 4 3 . . Peak Build Rating 305 | 7 8 8 25 27 26 22 55 58 54 59 58 66 73 76 71 76 68 66 93 88 106 103 120 147 272 277 284 305 302 288 Average Rating 138 | 5 6 7 18 25 25 15 44 53 54 54 54 60 68 68 71 67 64 66 84 88 90 96 114 142 193 274 277 280 266 257 On Entrance 91 | . 7 8 7 25 26 17 17 53 54 54 54 54 63 69 71 71 60 66 66 88 88 96 96 118 143 250 276 281 305 266 Avg Prop Armor Cover (%) 2 | . . . . . 12 . . . . . . 1 2 . . . . . . . . . . . 12 . . . . . Naked Turns . | . . . . . . . . . . . . . . . . . . . . . . . . . . . . . . . Heaviest Build 145 | 11 16 16 104 104 104 98 25 25 25 25 25 26 25 29 29 34 28 28 40 38 39 51 48 50 107 113 120 141 134 145 Greatest Support 138 | 20 40 40 60 60 60 42 25 25 25 25 25 30 30 30 30 30 30 30 41 41 41 41 50 52 130 130 130 130 130 138 Greatest Overweight (x) 10 | 2 . . 1 1 10 2 . . . . . . . . . 1 . . . . . 1 . . 1 . . 1 1 1 Average Overweight (x) . | . . . . 1 1 2 . . . . . . . . . . . . . . . . . . . . . . . . Largest Inventory Capacity 25 | 8 10 10 25 25 25 25 25 10 10 10 10 10 10 10 10 10 10 10 15 15 15 15 15 15 25 25 25 25 25 25 Average Capacity 19 | 7 9 10 18 25 25 25 10 10 10 10 10 10 10 10 10 10 10 10 14 15 15 15 15 15 20 25 25 25 25 25 Most Carried 25 | 5 8 8 21 25 25 20 19 10 10 10 10 10 10 10 10 10 10 10 11 11 15 13 12 14 25 25 25 25 25 25 Average Carried 16 | 3 6 7 12 23 22 18 9 9 10 9 9 9 9 9 10 9 9 10 9 11 13 11 10 11 16 22 24 23 22 19 Final Capacity 25 | 8 10 10 25 25 25 25 10 10 10 10 10 10 10 10 10 10 10 10 15 15 15 15 15 15 25 25 25 25 25 25 Final Carried 25 | 5 8 7 21 25 18 19 10 10 10 10 10 10 10 10 10 10 10 10 11 11 12 12 11 14 23 24 25 21 25 20 Class Distribution -------------------- 16% | Sprinter 13% | Scavenger-Mutant 12% | Hacker-Sprinter 11% | Mutant 9% | Scavenger-Tank 8% | Scout 8% | Tank 7% | Scavenger-Sprinter 6% | Hacker-Scout Dominant Class ---------------- Mutant | -10/Materials Mutant | -10/Mines Scavenger-Tank | -9/Materials Tank | -9/Storage Scavenger-Tank | -9/Recycling Scavenger-Mutant | -9/Scraptown Scout | -6/Factory Scout | -6/Lower Caves Scout | -6/Lower Caves Scout | -6/Zion Scout | -5/Proximity Caves Scout | -5/Factory Scout | -5/Waste Scout | -5/Factory Scout | -5/Upper Caves Sprinter | -5/Upper Caves Hacker-Sprinter | -5/Zhirov Hacker-Sprinter | -4/Proximity Caves Hacker-Scout | -4/Factory Hacker-Scout | -4/Upper Caves Hacker-Sprinter | -4/Warlord Hacker-Scout | -3/Proximity Caves Hacker-Scout | -3/Research Hacker-Scout | -3/Quarantine Scavenger-Mutant | -3/Protoforge Hacker-Sprinter | -2/Research Hacker-Sprinter | -2/Testing Sprinter | -1/Access Sprinter | -1/Command Generator-Sprinter | -1/Access_0 Resources | -11 -10 -10 -9 -9 -9 -9 -6 -6 -6 -6 -5 -5 -5 -5 -5 -5 -5 -4 -4 -4 -4 -3 -3 -3 -3 -2 -2 -1 -1 -1 ----------- Run | Yrd Mat Min Mat Sto Rec Scr Fac Low Low Zio Pro Fac Was Fac Upp Upp Zhi Pro Fac Upp War Pro Res Qua Frg Res Tes Acc Com Ac0 Matter Collected 25650 | 308 165 37 1076 1049 477 30 259 137 . 10 31 73 . . 161 56 83 10 57 135 289 127 102 266 3750 715 2695 5796 2368 5388 Remotely 9682 | . . . . . . . . . . . . . . . . . . . . . . . . . 929 327 1096 4439 1102 1789 Salvage Created 25207 | 139 576 81 1735 1177 538 . 316 . . . . 242 . . . 16 186 . 119 . 564 191 246 307 2991 621 1832 6845 2578 3907 Parts 1162 | 14 46 4 119 81 25 . 26 . . . 2 4 . . . 3 3 . 14 . 19 7 15 12 158 17 56 219 111 207 Haulers Intercepted 19 | . 1 . 6 6 . . 2 . . . . 1 . . . . . . . . . . . . . . 1 2 . . Recyclers Shooed 4 | . . . 1 . 2 . . . . . . . . . . . . . . . . . . . . . . 1 . . Parts Field Recycled . | . . . . . . . . . . . . . . . . . . . . . . . . . . . . . . . Retrieved Matter . | . . . . . . . . . . . . . . . . . . . . . . . . . . . . . . . Parts Self-Destructed 8 | . . . . . . . . . . . 2 . . . . 3 . . . . . 3 . . . . . . . . Prevented 4 | . . . . . . . . . . . . . . . . 2 . . . . . 2 . . . . . . . . Parts Restored 17 | . . . . . . . . . . . . . . . . . . . . . . . . . 17 . . . . . Faulty 17 | . . . . . . . . . . . . . . . . . . . . . . . . . 17 . . . . . Kills | -11 -10 -10 -9 -9 -9 -9 -6 -6 -6 -6 -5 -5 -5 -5 -5 -5 -5 -4 -4 -4 -4 -3 -3 -3 -3 -2 -2 -1 -1 -1 ------- Run | Yrd Mat Min Mat Sto Rec Scr Fac Low Low Zio Pro Fac Was Fac Upp Upp Zhi Pro Fac Upp War Pro Res Qua Frg Res Tes Acc Com Ac0 Combat Hostiles Destroyed 415 | . 13 2 28 17 5 . 7 . . . 1 . . . . 4 . . 5 . 13 8 5 . 48 17 27 145 20 50 Melee 10 | . . . . . . . . . . . . . . . . . . . . . . . . . 10 . . . . . Guns 97 | . 13 2 28 17 5 . . . . . . . . . . . . . . . 3 . . . 29 . . . . . Cannons 127 | . . . . . . . . . . . . . . . . . . . . . . . . . 2 15 26 32 8 44 AOE 169 | . . . . . . . 7 . . . 1 . . . . 4 . . 5 . 10 8 5 . 7 2 . 111 9 . Classes Destroyed 28 | 2 6 . 5 . 1 . . . . . 1 . . . . . . . . . 3 . . . 7 1 . 2 . . Worker 12 | . 1 . 2 1 . . 1 . . . . . . . . . . . 1 . . . . . . . 4 2 . . Builder 30 | . . . 2 1 3 . 2 . . . . . . . . . . . . . . . . . . 1 3 18 . . Tunneler 5 | 4 1 . . . . . . . . . . . . . . . . . . . . . . . . . . . . . Hauler 19 | . 1 . 6 6 . . 2 . . . . 1 . . . . . . . . . . . . . . 1 2 . . Recycler 15 | 1 . . 1 1 3 . . . . . . . . . . . . . . . . . 1 2 . . 3 2 1 . Carrier 1 | . . . . . . . . . . . . . . . . . . . . . . . . . . . . 1 . . Mechanic 15 | . 1 . . . . . . . . . . . . . . . . . . . . . . . . . 2 12 . . Operator 9 | . . . 2 2 . . . . . . . . . . . . . . 1 . . . . 1 . . 3 . . . Drone 10 | . . . . . . . . . . . 1 . . . . . . . . . . . . . 7 . . . . 2 Watcher 16 | . 2 . 5 2 . . . . . . . . . . . . . . 1 . . . . 1 . . 4 1 . . Swarmer 51 | . 6 . 6 4 . . 7 . . . . . . . . 4 . . 5 . . 4 3 . . 1 . 5 6 . Cutter 11 | . . . . . . . . . . . . . . . . . . . . . . . . . . 6 . . 5 . Saboteur 12 | . . . . . . . . . . . . . . . . . . . . . . . . . 2 . . 10 . . Grunt 128 | . 7 2 13 5 . . . . . . . . . . . . . . . . 5 3 2 . 2 7 11 69 2 . Brawler 20 | . . . 1 1 . . . . . . . . . . . . . . . . 2 . . . 1 1 1 13 . . Duelist 21 | . . . . . . . . . . . . . . . . . . . . . 1 1 . . 3 . . 16 . . Protector 3 | . . . . . . . . . . . . . . . . . . . . . . . . . . . . 3 . . Researcher 11 | . . . . . . . . . . . . . . . . . . . . . . . . . 7 . 4 . . . Sentry 30 | . . . 8 7 4 . . . . . . . . . . . . . . . . . . . 9 1 . 1 . . Specialist 8 | . . . . . . . . . . . . . . . . . . . . . 2 . . . . . 3 3 . . Hunter 13 | . . . . . 1 . . . . . . . . . . . . . . . . . . . 2 . 2 6 2 . Programmer 28 | . . . . . . . . . . . . . . . . . . . . . 3 . . . 2 . 5 17 1 . Heavy 2 | . . . . . . . . . . . . . . . . . . . . . . . . . . 1 . 1 . . M Guard 2 | . . . . . . . . . . . . . . . . . . . . . . . . . . . . . 2 . Enhanced Grunt 30 | . . . . . . . . . . . . . . . . . . . . . . . . . . . . . . 30 Enhanced Sentry 6 | . . . . . . . . . . . . . . . . . . . . . . . . . . . . . . 6 Enhanced Hunter 8 | . . . . . . . . . . . . . . . . . . . . . . . . . . . . . . 8 Decapitator 7 | . . . . . . . . . . . . . . . . . . . . . . . . . 7 . . . . . Immortal 3 | . . . . . . . . . . . . . . . . . . . . . . . . . 3 . . . . . Combat Programmer 2 | . . . . . . . . . . . . . . . . . . . . . . . . . . . . . 2 . Investigator 1 | . . . . . . . . . . . . . . . . . . . . . . . . . . . . 1 . . Striker 7 | . . . . . . . . . . . . . . . . . . . . . . . . . 2 . 4 1 . . Executioner 2 | . . . . . . . . . . . . . . . . . . . . . . . . . 2 . . . . . Alpha 7 3 | . . . . . . . . . . . . . . . . . . . . . . . . . 2 . 1 . . . V-Series 4 | . . . . . . . . . . . . . . . . . . . . . . . . . 4 . . . . . Zionite 1 | . . . 1 . . . . . . . . . . . . . . . . . . . . . . . . . . . Thug 1 | . . . 1 . . . . . . . . . . . . . . . . . . . . . . . . . . . Best Kill Streak 20 | 2 4 2 5 6 3 . 10 . . . 1 1 . . . 4 . . 6 . 4 4 5 2 8 7 13 20 10 6 Combat Bots Only 19 | . 3 2 4 6 1 . 7 . . . 1 . . . . 4 . . 5 . 4 4 5 . 7 7 9 19 9 6 Max Kills in Single Turn 6 | 1 2 1 2 2 1 . 3 . . . 1 1 . . . 2 . . 2 . 3 3 5 1 2 2 3 6 5 3 Gunslinging 1 | . . . 1 1 . . . . . . . . . . . . . . . . . . . . . . . . . . Exploded 5 | . . . . . . . 3 . . . 1 . . . . 2 . . 2 . 3 3 5 . 2 2 . 5 5 . Melee 1 | . . . . . . . . . . . . . . . . . . . . . . . . . 1 . . . . . Uniques/NPCs Destroyed 8 | . . . . . . . . . . . . . . . . . . . . . . . . . . . . . 1 7 MAIN.C Shell (-1/Command) A8 (-1/Access_0) A6 (-1/Access_0) A5 (-1/Access_0) A4 (-1/Access_0) A2 (-1/Access_0) Architect (-1/Access_0) A3 (-1/Access_0) Combat | -11 -10 -10 -9 -9 -9 -9 -6 -6 -6 -6 -5 -5 -5 -5 -5 -5 -5 -4 -4 -4 -4 -3 -3 -3 -3 -2 -2 -1 -1 -1 -------- Run | Yrd Mat Min Mat Sto Rec Scr Fac Low Low Zio Pro Fac Was Fac Upp Upp Zhi Pro Fac Upp War Pro Res Qua Frg Res Tes Acc Com Ac0 Hostile Shots Fired 1842 | . 89 19 115 47 10 . 28 1 6 . 15 . . 4 . 7 . . 25 . 7 2 27 20 404 61 72 176 88 619 Missed 750 | . 16 1 25 11 . . 16 . 5 . 10 . . 2 . 1 . . 14 . 5 . 15 16 184 21 39 76 31 262 Intercepted 20 | . . . . . . . . . . . . . . . . . . . . . . . . . 5 . . . 15 . Hits 1092 | . 73 18 90 36 10 . 12 1 1 . 5 . . 2 . 6 . . 11 . 2 2 12 4 220 40 33 100 57 357 Melee 28 | . . . 4 . . . . . . . . . . . . . . . . . . . . . 16 5 . . 2 1 Projectile 1064 | . 73 18 86 36 10 . 12 1 1 . 5 . . 2 . 6 . . 11 . 2 2 12 4 204 35 33 100 55 356 AOE 32 | . . . . . . . . . . . . . . . . . . . . . . . . . 18 4 . 2 7 1 Critical Strikes 63 | . . 2 2 1 . . . . . . . . . . . . . . 2 . . . . . 25 5 . 6 5 15 Actively Blocked 16 | . . . . . . . . . . . . . . . . . . . . . . . . . 2 . . . 4 10 Part Disruptions 3 | . . . . . . . . . . . . . . . . . . . . . . . . . 1 . . 2 . . Damage Taken 20203 | . 747 246 1102 372 173 . 174 18 16 . 75 . . 39 . 84 9 . 198 . 222 39 215 36 5954 621 562 2036 1686 5579 Core 2170 | . 152 30 117 53 34 . 22 . . . 26 . . . . 12 9 . . . 18 . 22 . 789 9 25 95 125 632 Absorbed by Shields 6964 | . . . . 38 . . . . . . . . . . . . . . . . . . . . . 593 541 330 544 4918 Redirected to Shielding 691 | . . . . . . . . . . . . . . . . . . . . . . . . . 242 . . 18 164 267 Ignored by Resistances 881 | . . . . . . . . . . . . . . . . . . . . . . . . . . . . 426 14 441 Regen/Repaired (Parts) 4523 | . . . 43 . . . 17 . . . . . . 121 . . . . 90 . 92 . . 21 983 316 224 842 365 1409 Core Remaining (%) 70 | 100 . 27 . . . 49 . . . . 94 . . . . . . 97 . . . 98 . . 32 . 97 . . 39 Volleys Fired 1175 | 19 68 16 100 64 24 . 13 3 . . 4 3 . 4 . 5 . . 9 . 33 7 4 8 167 28 79 212 85 220 Largest 3 | 2 2 2 3 3 3 . 1 1 . . 1 1 . 1 . 1 . . 1 . 2 1 1 1 2 1 1 1 2 2 Hottest 250 | 40 40 40 75 75 75 . 44 44 . . 90 98 . 98 . 90 . . 90 . 90 60 90 90 140 110 110 140 250 240 Shots Fired 1681 | 38 136 32 299 189 74 . 13 3 . . 4 3 . 4 . 5 . . 9 . 38 7 4 8 189 28 79 210 87 222 Gun 1006 | 38 136 32 299 189 74 . . . . . . . . . . . . . . . 37 . . . 171 . 1 . . 29 Cannon 509 | . . . . . . . 7 3 . . 3 3 . 3 . 1 . . 6 . . . 3 8 7 27 78 82 85 193 Launcher 165 | . . . . . . . 6 . . . 1 . . . . 4 . . 3 . 1 7 1 . 11 1 . 128 2 . Special 1 | . . . . . . . . . . . . . . 1 . . . . . . . . . . . . . . . . Kinetic 1326 | 38 136 32 299 189 74 . 7 3 . . . . . . . . . . . . . . . . 171 27 78 75 24 173 Thermal 107 | . . . . . . . . . . . 3 3 . 3 . 1 . . 6 . . . 3 8 7 . . 7 46 20 Explosive 159 | . . . . . . . 6 . . . 1 . . . . 4 . . 3 . 1 7 1 . 11 1 . 122 2 . Electromagnetic 21 | . . . . . . . . . . . . . . . . . . . . . . . . . . . . 6 15 . Entropic 67 | . . . . . . . . . . . . . . . . . . . . . 37 . . . . . 1 . . 29 Robot Hit Streak 55 | 6 9 13 23 10 13 . 3 . . . . . . . . . . . 1 . 4 4 5 . 45 18 24 55 30 37 Robot Miss Streak 6 | 2 6 1 6 6 2 . . . . . 1 . . . . . . . . . 3 . . . 2 1 2 4 1 5 Penetration Max 3 | . . . . . . . . . . . . . . . . . . . . . 2 . . . 1 1 3 2 1 2 Secondary Targets 6 | . 3 . 2 1 . . . . . . . . . . . . . . . . . . . . . . . . . . Max Gunslinging Chain 1 | . 1 . 1 1 . . . . . . . . . . . . . . . . . . . . . . . . . . Shots Hit Robots 1293 | 25 82 28 177 91 50 . 5 . . . . 8 . . . . 4 . 5 . 22 1 3 6 206 27 72 160 144 177 Core Hits 990 | 10 38 6 79 38 16 . 14 . . . 1 2 . . . 9 3 . 8 . 30 14 8 2 122 18 40 322 56 154 Critical Kills 58 | . 1 . . . . . . . . . . . . . . . . . . . . . . . 9 . 1 . 3 44 Critical Parts Destroyed 51 | . . . 1 1 . . . . . . . . . . . . . . . . 6 . . . 12 . . . . 31 Critical Strikes 214 | . 1 . 1 1 . . . . . . . . . . . . . . . . 6 . . . 41 11 22 13 17 101 Meltdown 10 | . . . . . . . . . . . . . . . . . . . . . . . . . . . 1 . 3 6 Destroy 103 | . 1 . 1 1 . . . . . . . . . . . . . . . . . . . . 22 . . . . 78 Blast 68 | . . . . . . . . . . . . . . . . . . . . . . . . . . 11 21 13 6 17 Corrupt 1 | . . . . . . . . . . . . . . . . . . . . . . . . . . . . . 1 . Sever 1 | . . . . . . . . . . . . . . . . . . . . . . . . . 1 . . . . . Impale 25 | . . . . . . . . . . . . . . . . . . . . . . . . . 18 . . . 7 . Detonate 6 | . . . . . . . . . . . . . . . . . . . . . 6 . . . . . . . . . Melee Attacks 381 | . . . 1 3 . . 29 9 . 1 2 28 . 16 1 3 4 . 30 . 15 . 19 24 79 11 16 4 86 . Impact 4 | . . . 1 3 . . . . . . . . . . . . . . . . . . . . . . . . . . Slashing 227 | . . . . . . . 29 9 . 1 2 28 . 16 1 3 4 . 30 . 15 . 19 24 14 11 16 4 1 . Piercing 150 | . . . . . . . . . . . . . . . . . . . . . . . . . 65 . . . 85 . Sneak Attacks 27 | . . . . . . . 3 . . . . 1 . . . . . . 2 . . . 1 4 7 1 7 1 . . Combat Hostiles 1 | . . . . . . . . . . . . . . . . . . . . . . . . 1 . . . . . . Follow-up Attacks 3 | . . . . . . . . . . . . . . . . . . . . . . . . . 3 . . . . . Damage Inflicted 105955 | 198 712 236 2276 1663 924 . 1024 . . . 83 458 . . . 219 371 . 713 . 2882 1499 1134 766 10529 3430 9966 42268 12703 11901 Guns 13552 | 198 698 222 2273 1654 834 . . . . . . . . . . . . . . . 1611 . . . 4961 . 70 . . 1031 Cannons 37151 | . . . . . . . . . . . . . . . . . . . . . . . . . 182 2977 8692 8419 6011 10870 Explosions 42016 | . . . . . . . 706 . . . 83 . . . . 219 . . 452 . 1271 1499 960 . 1963 272 . 33688 903 . Melee 13106 | . . . . . . . 318 . . . . 458 . . . . 371 . 261 . . . 174 766 3423 181 1204 161 5789 . Ramming 130 | . 14 14 3 9 90 . . . . . . . . . . . . . . . . . . . . . . . . . Kinetic 43991 | 198 698 222 2273 1654 834 . . . . . . . . . . . . . . . . . . . 4961 2977 8692 8332 2280 10870 Thermal 6034 | . . . . . . . 141 . . . . . . . . . . . 33 . 1233 . 73 . 274 . . 766 3514 . Explosive 39123 | . . . . . . . 565 . . . 83 . . . . 219 . . 419 . 38 1499 887 . 1871 272 . 32367 903 . Electromagnetic 859 | . . . . . . . . . . . . . . . . . . . . . . . . . . . . 642 217 . Impact . | . . . . . . . . . . . . . . . . . . . . . . . . . . . . . . . Slashing 4188 | . . . . . . . 318 . . . . 458 . . . . 371 . 261 . . . 174 766 294 181 1204 161 . . Piercing 8918 | . . . . . . . . . . . . . . . . . . . . . . . . . 3129 . . . 5789 . Entropic 2712 | . . . . . . . . . . . . . . . . . . . . . 1611 . . . . . 70 . . 1031 Highest Corruption 16 | . . . 2 2 3 . . . . . . . 6 6 6 6 6 6 1 1 1 . . . 13 . 1 7 16 1 Average Corruption 4 | . . . 2 2 2 . . . . . . . 6 6 6 6 6 6 1 1 1 . . . 8 . 1 2 12 1 Corruption Purged 25 | . . . . . . . . . . . . . . . . . . . . . . . . . . . . . 25 . Corruption Blocked 1 | . . . . . . . . . . . . . 1 . . . . . . . . . . . . . . . . . Effects 253 | . . . 6 18 18 . . . . . . . . 8 3 1 2 4 . 1 . . . . 88 . 3 63 30 8 Message Errors 61 | . . . 1 2 3 . . . . . . . . 4 1 1 . 2 . . . . . . 22 . . 19 4 2 Matter Fused 57 | . . . . 6 . . . . . . . . . 1 1 . 2 . . 1 . . . . 22 . 2 13 6 3 Heat Flow Errors 28 | . . . 2 . 4 . . . . . . . . . 1 . . . . . . . . . 7 . 1 10 1 2 Energy Discharges 35 | . . . 2 3 3 . . . . . . . . 1 . . . . . . . . . . 11 . . 7 7 1 Parts Rejected 4 | . . . . . . . . . . . . . . . . . . 1 . . . . . . 2 . . . 1 . Parts Fused 7 | . . . . . 2 . . . . . . . . . . . . . . . . . . . 1 . . 3 1 . Data Loss (minor) 28 | . . . . 2 3 . . . . . . . . 1 . . . . . . . . . . 11 . . 8 3 . Data Loss (major) 7 | . . . . . . . . . . . . . . 1 . . . . . . . . . . 6 . . . . . Misfires 6 | . . . . 3 2 . . . . . . . . . . . . . . . . . . . . . . . 1 . Alerts 7 | . . . . . 1 . . . . . . . . . . . . 1 . . . . . . 4 . . 1 . . Misdirections 5 | . . . . . . . . . . . . . . . . . . . . . . . . . 2 . . . 3 . Weapon Failures 8 | . . . 1 2 . . . . . . . . . . . . . . . . . . . . . . . 2 3 . Overload Shots . | . . . . . . . . . . . . . . . . . . . . . . . . . . . . . . . Overflow Damage 7164 | . . . . . 6 . 103 . . . 5 25 . . . . 72 . 39 . 104 77 94 238 939 389 1978 2578 403 114 Projectiles 3148 | . . . . . . . . . . . . . . . . . . . . . . . . . . 215 1653 952 214 114 Explosions 2090 | . . . . . . . 36 . . . 5 . . . . . . . 15 . 104 77 47 . 163 13 . 1626 4 . Melee 1926 | . . . . . 6 . 67 . . . . 25 . . . . 72 . 24 . . . 47 238 776 161 325 . 185 . Knockbacks 129 | . . 1 . 1 . . . . . . . . . . . . . . . . . . . . . 11 25 31 5 55 Impact 2 | . . 1 . 1 . . . . . . . . . . . . . . . . . . . . . . . . . . Kinetic 123 | . . . . . . . . . . . . . . . . . . . . . . . . . . 8 25 30 5 55 Secondary 4 | . . . . . . . . . . . . . . . . . . . . . . . . . . 3 . 1 . . Self-Inflicted Damage 590 | . . . . . 34 . 51 . . . . . . . . . . . . . 61 . . . 93 . . 261 90 . Shots 13 | . . . . . . . 2 . . . . . . . . . . . . . 1 . . . 1 . . 8 1 . Rammed 13 | . 3 4 1 1 4 . . . . . . . . . . . . . . . . . . . . . . . . . Targets Rammed 13 | . 3 4 1 1 4 . . . . . . . . . . . . . . . . . . . . . . . . . Kicked . | . . . . . . . . . . . . . . . . . . . . . . . . . . . . . . . Crushed . | . . . . . . . . . . . . . . . . . . . . . . . . . . . . . . . Highest Temperature 798 | . 18 39 371 416 276 . 19 3 . . 96 100 2 87 295 91 44 . 8 . 307 . 8 9 798 226 244 402 203 338 Average Temperature 75 | . 8 19 74 110 77 . 6 1 . . 38 30 1 23 69 36 21 . 3 . 145 . 5 5 148 71 68 89 99 58 Received Heat Transfer 2692 | . 207 174 363 126 36 . 6 9 . . . . . 9 . . . . 21 . 12 21 48 . 1111 54 28 180 . 287 Thermoelectric Energy+ 879 | . . . . . . . . . . . . . . . . . . . . . . . . . . . . . 879 . Effects 11 | . . . 2 4 . . . . . . . . . . . . . . . . . . . . 2 . . 1 2 . Shutdowns 1 | . . . 1 . . . . . . . . . . . . . . . . . . . . . . . . . . . Energy Bleed 4 | . . . 1 2 . . . . . . . . . . . . . . . . . . . . . . . . 1 . Interference 6 | . . . . 2 . . . . . . . . . . . . . . . . . . . . 2 . . 1 1 . Siege Activations . | . . . . . . . . . . . . . . . . . . . . . . . . . . . . . . . Martial Activations . | . . . . . . . . . . . . . . . . . . . . . . . . . . . . . . . Shielding Activations . | . . . . . . . . . . . . . . . . . . . . . . . . . . . . . . . Robots Disrupted 4 | . . . . . . . . . . . . . . . . . . . . . . . . . . . . 4 . . Combat Hostiles 2 | . . . . . . . . . . . . . . . . . . . . . . . . . . . . 2 . . Robots Corrupted 4 | . . . . . . . . . . . . . . . . . . . . . . . . . . . . 2 2 . Combat Hostiles 4 | . . . . . . . . . . . . . . . . . . . . . . . . . . . . 2 2 . Parts Fried 11 | . . . . . . . . . . . . . . . . . . . . . . . . . . . . 5 6 . Impact Corruptions 3 | . . . . . 1 . . . . . . . . . . . . . . . . . . . . . 2 . . . Robots Melted 10 | . . . . . . . . . . . . . . . . . . . . . . . . . . . 1 . 3 6 Combat Hostiles 9 | . . . . . . . . . . . . . . . . . . . . . . . . . . . 1 . 2 6 Parts Melted 9 | . . . . . . . . . . . . . . . . . . . . . . . . . . . 2 1 3 3 Heat Transferred 3220 | . . . . . . . 100 . . . . . . . . . . . 50 . 650 . 50 . 235 . . 400 1735 . Parts Sabotaged . | . . . . . . . . . . . . . . . . . . . . . . . . . . . . . . . Parts Stolen . | . . . . . . . . . . . . . . . . . . . . . . . . . . . . . . . Parts Stripped . | . . . . . . . . . . . . . . . . . . . . . . . . . . . . . . . Power Chain Reactions 8 | . . . . . . . . . . . . . . . . . . . . . . . 1 . 1 . . 6 . . Alert | -11 -10 -10 -9 -9 -9 -9 -6 -6 -6 -6 -5 -5 -5 -5 -5 -5 -5 -4 -4 -4 -4 -3 -3 -3 -3 -2 -2 -1 -1 -1 ------- Run | Yrd Mat Min Mat Sto Rec Scr Fac Low Low Zio Pro Fac Was Fac Upp Upp Zhi Pro Fac Upp War Pro Res Qua Frg Res Tes Acc Com Ac0 Maximum Alert Level 5 | . . . 1 . . . 2 . . . . . . . . . . . 1 . . . 1 . 3 3 4 5 5 . Low Security (%) 50 | 100 100 100 51 100 100 . 81 . . . . 100 100 100 . . . . 67 . . . 88 100 24 . . . 75 . Level 1 8 | . . . 48 . . . . . . . . . . . . . . . 32 . . . 11 . 7 . . . . . Level 2 10 | . . . . . . . 18 . . . . . . . . . . . . . . . . . 39 58 18 . . . Level 3 16 | . . . . . . . . . . . . . . . . . . . . . . . . . 27 41 40 43 . . Level 4 4 | . . . . . . . . . . . . . . . . . . . . . . . . . . . 41 17 . . Level 5 5 | . . . . . . . . . . . . . . . . . . . . . . . . . . . . 25 2 . High Security 4 | . . . . . . . . . . . . . . . . . . . . . . . . . . . . 14 21 . Max Security . | . . . . . . . . . . . . . . . . . . . . . . . . . . . . . . . Peak Influence 4599 | 10 111 30 372 188 57 . 491 . . . . 133 31 134 . . . . 352 . . . 279 191 820 947 1430 4599 3579 . Initial 2943 | . . 4 . 26 6 . . . . . . 40 31 7 . . . . . . . . 74 150 6 445 521 854 2943 . Average 634 | 1 44 . 196 76 12 . 96 . . . . 103 26 72 . . . . 112 . . . 66 119 503 665 1022 1776 3453 . Influence Increases 14606 | 25 374 50 1004 578 324 . 646 30 60 . 125 281 . 231 . 90 . . 531 . 575 180 335 212 1737 632 1214 4641 731 . Destroy 0b10 Robot/C 7560 | . 260 40 660 340 100 . 140 . . . . . . . . 80 . . 100 . 260 160 100 . 1040 340 620 2900 420 . Destroy 0b10 Robot/NC 645 | 25 30 . 90 65 30 . 25 . . . 5 10 . . . . . . 15 . . . 5 20 15 5 100 200 5 . Destroy Leader 1090 | . 56 10 202 106 . . 24 . . . . 2 . . . 10 . . 12 . . 20 10 2 50 50 60 436 40 . Allied During Kill 82 | . . . 18 . . . . . . . . . . . . . . . . . . . . . . . . 59 5 . Successful Hack 445 | . 13 . 14 30 28 . 27 . . . . 107 . 45 . . . . 64 . . . . 32 8 24 53 . . . Select Force Hacks 150 | . . . . . 150 . . . . . . . . . . . . . . . . . . . . . . . . . Disable Machine 1155 | . . . 15 30 15 . 315 . . . . 15 . 15 . . . . 90 . . . 15 75 315 30 120 90 15 . Destroy Structure 1799 | . . . 5 7 1 . 55 . . . . 42 . 36 . . . . 130 . . . 70 38 24 123 231 851 186 . Partial Spotted 285 | . . . . . . . 30 . . . . 60 . 15 . . . . 30 . . . 45 45 30 30 . . . . Lose Combat Pursuer 1395 | . 15 . . . . . 30 30 60 . 120 45 . 120 . . . . 90 . 315 . 90 . 255 30 30 105 60 . Influence Decreases 11042 | 25 361 63 941 623 336 6 166 298 111 161 60 255 80 153 84 25 70 . 187 168 468 353 176 469 956 498 716 1467 1766 . Entered New Map 4368 | . . 9 . 37 12 6 . 178 41 161 . 25 60 4 34 2 70 . . 128 176 283 36 119 6 348 406 571 1656 . Time Decay 5415 | 25 321 34 616 412 324 . 166 120 70 . 60 230 10 149 50 13 . . 187 40 272 70 130 190 750 150 310 716 . . Lost Part 405 | . 40 20 25 . . . . . . . . . . . . 10 . . . . 20 . 10 . 200 . . 10 70 . Lost Ally 80 | . . . . . . . . . . . . . 10 . . . . . . . . . . 10 . . . 20 40 . Purge Threat 774 | . . . 300 174 . . . . . . . . . . . . . . . . . . . 150 . . . 150 . . Squads Dispatched 125 | . 2 . 4 . . . 8 . . . . 7 . 5 . . . . 6 . . . 5 3 7 5 8 57 8 . Investigation 23 | . . . 2 . . . 3 . . . . 5 . 3 . . . . 3 . . . 2 . 5 . . . . . Extermination 24 | . . . . . . . 2 . . . . 2 . 2 . . . . 2 . . . 1 3 . 2 2 8 . . Reinforcement 18 | . 2 . 2 . . . 2 . . . . . . . . . . . . . . . 2 . 2 3 1 4 . . Assault 55 | . . . . . . . . . . . . . . . . . . . . . . . . . . . 5 42 8 . Garrison 5 | . . . . . . . 1 . . . . . . . . . . . 1 . . . . . . . . 3 . . Intercept . | . . . . . . . . . . . . . . . . . . . . . . . . . . . . . . . Searches Triggered . | . . . . . . . . . . . . . . . . . . . . . . . . . . . . . . . Unchained Authorized 2 | . . . . . . . . . . . . . . . . . . . . . . . . . . 1 . 1 . . Construction Impeded 2 | . . . . . . . 1 . . . . . . . . . . . . . . . . . . . . 1 . . Haulers Reinforced 5 | . . . . . . . 1 . . . . . . . . . . . . . . . 1 . . . 1 2 . . Active Scanning Responses . | . . . . . . . . . . . . . . . . . . . . . . . . . . . . . . . Cargo Convoy Interrupts . | . . . . . . . . . . . . . . . . . . . . . . . . . . . . . . . Stealth | -11 -10 -10 -9 -9 -9 -9 -6 -6 -6 -6 -5 -5 -5 -5 -5 -5 -5 -4 -4 -4 -4 -3 -3 -3 -3 -2 -2 -1 -1 -1 --------- Run | Yrd Mat Min Mat Sto Rec Scr Fac Low Low Zio Pro Fac Was Fac Upp Upp Zhi Pro Fac Upp War Pro Res Qua Frg Res Tes Acc Com Ac0 Distress Signals 33 | . 1 . 1 3 1 . 1 . . . 1 . . 2 . . . . 1 . . . . 1 15 . 2 4 . . Communications Jammed . | . . . . . . . . . . . . . . . . . . . . . . . . . . . . . . . Distress Signals . | . . . . . . . . . . . . . . . . . . . . . . . . . . . . . . . Times Spotted 672 | . 29 2 42 21 4 . 15 2 6 . 9 4 6 11 . 4 . . 17 . 79 3 25 7 82 21 34 150 29 70 Peak Tracking Total 18 | . 3 2 8 6 1 . 4 3 4 . 8 3 6 5 . 4 . . 9 . 18 4 16 4 13 5 6 16 10 6 Tactical Retreats 41 | . 1 . . . . . 2 1 1 . 2 1 . 3 . . . . 3 . 5 . 2 . 7 2 2 6 3 . Traps | -11 -10 -10 -9 -9 -9 -9 -6 -6 -6 -6 -5 -5 -5 -5 -5 -5 -5 -4 -4 -4 -4 -3 -3 -3 -3 -2 -2 -1 -1 -1 ------- Run | Yrd Mat Min Mat Sto Rec Scr Fac Low Low Zio Pro Fac Was Fac Upp Upp Zhi Pro Fac Upp War Pro Res Qua Frg Res Tes Acc Com Ac0 Traps Triggered 38 | . 1 . 2 2 . . 1 . . . . 1 . 1 . . . . . . . . . . 12 2 3 . 13 . Indirectly . | . . . . . . . . . . . . . . . . . . . . . . . . . . . . . . . Trap Hack Attempts . | . . . . . . . . . . . . . . . . . . . . . . . . . . . . . . . Triggered . | . . . . . . . . . . . . . . . . . . . . . . . . . . . . . . . Disarmed 5 | . . . . . . . 5 . . . . . . . . . . . . . . . . . . . . . . . Reprogrammed . | . . . . . . . . . . . . . . . . . . . . . . . . . . . . . . . Reused . | . . . . . . . . . . . . . . . . . . . . . . . . . . . . . . . Traps Extracted . | . . . . . . . . . . . . . . . . . . . . . . . . . . . . . . . Installed . | . . . . . . . . . . . . . . . . . . . . . . . . . . . . . . . Triggered . | . . . . . . . . . . . . . . . . . . . . . . . . . . . . . . . Machines | -11 -10 -10 -9 -9 -9 -9 -6 -6 -6 -6 -5 -5 -5 -5 -5 -5 -5 -4 -4 -4 -4 -3 -3 -3 -3 -2 -2 -1 -1 -1 ---------- Run | Yrd Mat Min Mat Sto Rec Scr Fac Low Low Zio Pro Fac Was Fac Upp Upp Zhi Pro Fac Upp War Pro Res Qua Frg Res Tes Acc Com Ac0 Machines Disabled 103 | . . . 1 2 1 . 21 1 . . . 1 . 1 . . . . 6 . 4 . 1 5 27 2 10 6 3 11 Max in Single Turn 19 | . . . 1 1 1 . 19 1 . . . 1 . 1 . . . . 2 . 1 . 1 1 3 1 1 1 1 1 Garrison Access 4 | . . . . . . . 1 . . . . . . . . . . . . . . . 1 1 1 . . . . . Machines Repaired . | . . . . . . . . . . . . . . . . . . . . . . . . . . . . . . . Machines Dismantled 1 | . . . . . . . . . . . . . . . . . . . . . 1 . . . . . . . . . Machines Sabotaged . | . . . . . . . . . . . . . . . . . . . . . . . . . . . . . . . Overloaded Fab Kills . | . . . . . . . . . . . . . . . . . . . . . . . . . . . . . . . Hacking | -11 -10 -10 -9 -9 -9 -9 -6 -6 -6 -6 -5 -5 -5 -5 -5 -5 -5 -4 -4 -4 -4 -3 -3 -3 -3 -2 -2 -1 -1 -1 --------- Run | Yrd Mat Min Mat Sto Rec Scr Fac Low Low Zio Pro Fac Was Fac Upp Upp Zhi Pro Fac Upp War Pro Res Qua Frg Res Tes Acc Com Ac0 Machines Accessed 152 | . 7 . 9 11 12 3 12 1 2 . . 18 . 12 3 1 4 1 12 . 2 . 5 13 7 6 8 1 . 2 Terminals 83 | . 5 . 6 8 6 . 7 . . . . 9 . 7 . 1 . 1 6 . . . 1 10 3 5 7 1 . . Fabricators 6 | . . . . . . . . . . . . 3 . 1 . . . . . . . . . . . 1 1 . . . Repair Stations 7 | . . . 1 . . . 1 . . . . . . 1 . . . . 3 . . . 1 . . . . . . . Recycling Units 27 | . 2 . 1 2 6 . 2 . . . . 4 . 3 . . . . 2 . . . 2 . 3 . . . . . Scanalyzers 5 | . . . 1 . . . 1 . . . . . . . . . . . 1 . . . . 2 . . . . . . Garrison Access 7 | . . . . 1 . . 1 . . . . 2 . . . . . . . . . . 1 1 1 . . . . . Total Hacks 360 | . 12 . 20 38 35 8 25 1 6 . . 35 . 25 5 1 17 1 28 . 5 . 11 28 15 11 13 2 . 18 Successful 226 | . 6 . 12 18 22 8 13 1 6 . . 19 . 12 5 1 17 1 18 . 5 . 5 18 13 3 4 1 . 18 Failed 133 | . 6 . 8 20 13 . 12 . . . . 16 . 13 . . . . 10 . . . 6 9 2 8 9 1 . . Catastrophic 13 | . . . 1 1 . . 1 . . . . 2 . 5 . . . . 1 . . . . . . 2 . . . . Database Lockouts 1 | . . . . . . . . . . . . . . . . . . . . . . . . 1 . . . . . . Manual 148 | . 10 . 15 23 25 . 11 . . . . 17 . 10 . . . . 9 . . . 3 9 6 6 4 . . . Terminals 206 | . 10 . 15 32 19 . 16 . . . . 20 . 17 . 1 . 1 18 . . . 2 22 10 9 12 2 . . Fabricators 13 | . . . . . . . . . . . . 7 . 3 . . . . . . . . . . . 2 1 . . . Repair Stations 16 | . . . 2 . . . 3 . . . . . . 2 . . . . 5 . . . 4 . . . . . . . Recycling Units 42 | . 2 . 2 3 16 . 3 . . . . 4 . 3 . . . . 3 . . . 3 . 3 . . . . . Scanalyzers 10 | . . . 1 . . . 2 . . . . . . . . . . . 2 . . . . 5 . . . . . . Garrison Access 13 | . . . . 3 . . 1 . . . . 4 . . . . . . . . . . 2 1 2 . . . . . Terminal Hacks 130 | . 1 . 2 10 3 8 6 1 6 . . 8 . 5 5 1 17 1 9 . 5 . 1 11 6 2 3 1 . 18 Record 35 | . . . . . . . . 1 5 . . . . . 3 1 5 1 . . . . . . 3 . . . . 16 Part Schematic 7 | . . . . 1 2 . . . . . . . . . . . 4 . . . . . . . . . . . . . Robot Analysis 11 | . . . . 1 . 6 . . . . . . . . . . 4 . . . . . . . . . . . . . Prototype ID Bank 13 | . . . . 1 1 . . . . . . 2 . . . . 4 . 1 . 4 . . . . . . . . . Open Door 8 | . . . . 2 . 1 . . 1 . . . . . 2 . . . . . 1 . 1 . . . . . . . Level Access Points 1 | . . . . . . . . . . . . 1 . . . . . . . . . . . . . . . . . . Branch Access Points 4 | . . . . . . . 1 . . . . 1 . . . . . . 1 . . . . . . 1 . . . . Terminal Index 1 | . . . . . . . . . . . . . . . . . . . 1 . . . . . . . . . . . Unreport Threat 6 | . . . 2 2 . . . . . . . . . . . . . . . . . . . 1 . . . 1 . . Locate Traps 14 | . 1 . . 1 . . 1 . . . . . . 2 . . . . 3 . . . . 3 2 . 1 . . . Disarm Traps 1 | . . . . . . . 1 . . . . . . . . . . . . . . . . . . . . . . . Recall Investigation 4 | . . . . . . . . . . . . 2 . 1 . . . . 1 . . . . . . . . . . . Recall Extermination 3 | . . . . . . . . . . . . . . 1 . . . . . . . . . 2 . . . . . . Hauler Manifests 2 | . . . . 1 . . 1 . . . . . . . . . . . . . . . . . . . . . . . Zone Layout 17 | . . . . 1 . . 2 . . . . 2 . 1 . . . . 2 . . . . 5 1 1 2 . . . Proto ID Catalog 1 | . . . . . . 1 . . . . . . . . . . . . . . . . . . . . . . . . Gate Test 138-A 1 | . . . . . . . . . . . . . . . . . . . . . . . . . . . . . . 1 Gate Test 138-B 1 | . . . . . . . . . . . . . . . . . . . . . . . . . . . . . . 1 Fabricator Hacks 5 | . . . . . . . . . . . . 3 . 1 . . . . . . . . . . . 1 . . . . Network Status 3 | . . . . . . . . . . . . 1 . 1 . . . . . . . . . . . 1 . . . . Build 2 | . . . . . . . . . . . . 2 . . . . . . . . . . . . . . . . . . Repair Station Hacks 7 | . . . 2 . . . . . . . . . . 2 . . . . 2 . . . 1 . . . . . . . Scan Component 3 | . . . 1 . . . . . . . . . . 1 . . . . 1 . . . . . . . . . . . Repair 3 | . . . 1 . . . . . . . . . . 1 . . . . 1 . . . . . . . . . . . Refit 1 | . . . . . . . . . . . . . . . . . . . . . . . 1 . . . . . . . Recycling Unit Hacks 8 | . 2 . . 1 4 . . . . . . . . . . . . . 1 . . . . . . . . . . . Retrieve Components 8 | . 2 . . 1 4 . . . . . . . . . . . . . 1 . . . . . . . . . . . Scanalyzer 8 | . . . 1 . . . 2 . . . . . . . . . . . 1 . . . . 4 . . . . . . Retrieve Study 8 | . . . 1 . . . 2 . . . . . . . . . . . 1 . . . . 4 . . . . . . Garrison Access Hacks 4 | . . . . . . . 1 . . . . . . . . . . . . . . . 1 1 1 . . . . . Seal Access 4 | . . . . . . . 1 . . . . . . . . . . . . . . . 1 1 1 . . . . . Unauthorized Hacks 62 | . 3 . 7 7 13 . 4 . . . . 8 . 4 . . . . 5 . . . 2 2 6 . 1 . . . Terminals 38 | . 3 . 7 7 8 . 1 . . . . 3 . 1 . . . . 2 . . . . 2 3 . 1 . . . Track 1 | . . . . . . . . . . . . . . . . . . . 1 . . . . . . . . . . . Assimilate 3 | . . . . . . . . . . . . 1 . . . . . . 1 . . . . 1 . . . . . . Botnet 16 | . 1 . 2 2 3 . 1 . . . . 2 . 1 . . . . . . . . . 1 2 . 1 . . . Operators 1 | . . . . . . . . . . . . . . . . . . . . . . . . . 1 . . . . . Skim 17 | . 2 . 5 5 5 . . . . . . . . . . . . . . . . . . . . . . . . . Fabricators 1 | . . . . . . . . . . . . 1 . . . . . . . . . . . . . . . . . . Prioritize 1 | . . . . . . . . . . . . 1 . . . . . . . . . . . . . . . . . . Repair Stations 2 | . . . . . . . 1 . . . . . . . . . . . 1 . . . . . . . . . . . Patch 2 | . . . . . . . 1 . . . . . . . . . . . 1 . . . . . . . . . . . Recycling Units 21 | . . . . . 5 . 2 . . . . 4 . 3 . . . . 2 . . . 2 . 3 . . . . . Tunnel 5 | . . . . . 5 . . . . . . . . . . . . . . . . . . . . . . . . . Fedlink 16 | . . . . . . . 2 . . . . 4 . 3 . . . . 2 . . . 2 . 3 . . . . . Scanalyzers . | . . . . . . . . . . . . . . . . . . . . . . . . . . . . . . . Garrison Access . | . . . . . . . . . . . . . . . . . . . . . . . . . . . . . . . Data Cores Recovered 4 | . . . 1 . . . . . . . . . . . . . . . 1 . . . . . . . 2 . . . Used 1 | . . . . . . . . . . . . . . . . . . . . . . . . . . . 1 . . . Hacking Detections 102 | . 5 . 7 9 7 . 8 . . . . 14 . 8 . 1 . . 8 . . . 4 12 4 6 8 1 . . Full Trace Events 5 | . . . 1 1 1 . . . . . . 1 . . . . . . . . . . . . 1 . . . . . Feedback Events . | . . . . . . . . . . . . . . . . . . . . . . . . . . . . . . . Feedback Blocked . | . . . . . . . . . . . . . . . . . . . . . . . . . . . . . . . Robot Schematics Acquired 10 | . . . . . . . . . . 3 . . . . . . . . . . . . . . 5 . 2 . . . Robots Built . | . . . . . . . . . . . . . . . . . . . . . . . . . . . . . . . Authchips . | . . . . . . . . . . . . . . . . . . . . . . . . . . . . . . . Time . | . . . . . . . . . . . . . . . . . . . . . . . . . . . . . . . Total Robot Build Rating . | . . . . . . . . . . . . . . . . . . . . . . . . . . . . . . . Part Schematics Acquired 48 | . . . . 1 2 . . . . 16 . . . . . . 4 . . . . . . . 13 . 12 . . . Parts Built 4 | . . . . . . . . . . . . 4 . . . . . . . . . . . . . . . . . . Authchips . | . . . . . . . . . . . . . . . . . . . . . . . . . . . . . . . Time 186 | . . . . . . . . . . . . 186 . . . . . . . . . . . . . . . . . . Total Part Build Rating 30 | . . . . . . . . . . . . 30 . . . . . . . . . . . . . . . . . . Part Studies Acquired 8 | . . . 1 . . . 2 . . . . . . . . . . . 1 . . . . 4 . . . . . . Parts Repaired 3 | . . . 1 . . . . . . . . . . 1 . . . . 1 . . . . . . . . . . . Time 152 | . . . 26 . . . . . . . . . . 95 . . . . 31 . . . . . . . . . . . Parts Recycled . | . . . . . . . . . . . . . . . . . . . . . . . . . . . . . . . Recycled Matter . | . . . . . . . . . . . . . . . . . . . . . . . . . . . . . . . Retrieved Matter . | . . . . . . . . . . . . . . . . . . . . . . . . . . . . . . . Retrieved Components 24 | . 5 . . 6 12 . . . . . . . . . . . . . 1 . . . . . . . . . . . Parts Scanalyzed . | . . . . . . . . . . . . . . . . . . . . . . . . . . . . . . . Part Schematics Acquired . | . . . . . . . . . . . . . . . . . . . . . . . . . . . . . . . Parts Damaged . | . . . . . . . . . . . . . . . . . . . . . . . . . . . . . . . Bothacking | -11 -10 -10 -9 -9 -9 -9 -6 -6 -6 -6 -5 -5 -5 -5 -5 -5 -5 -4 -4 -4 -4 -3 -3 -3 -3 -2 -2 -1 -1 -1 ------------ Run | Yrd Mat Min Mat Sto Rec Scr Fac Low Low Zio Pro Fac Was Fac Upp Upp Zhi Pro Fac Upp War Pro Res Qua Frg Res Tes Acc Com Ac0 Used RIF Installer . | . . . . . . . . . . . . . . . . . . . . . . . . . . . . . . . Robots Hacked . | . . . . . . . . . . . . . . . . . . . . . . . . . . . . . . . Non-combat . | . . . . . . . . . . . . . . . . . . . . . . . . . . . . . . . Combat . | . . . . . . . . . . . . . . . . . . . . . . . . . . . . . . . Robot Hacks Applied . | . . . . . . . . . . . . . . . . . . . . . . . . . . . . . . . Relay Couplers Released . | . . . . . . . . . . . . . . . . . . . . . . . . . . . . . . . Fabnet Peak Effective % . | . . . . . . . . . . . . . . . . . . . . . . . . . . . . . . . Robots Rewired . | . . . . . . . . . . . . . . . . . . . . . . . . . . . . . . . Allies Hacked . | . . . . . . . . . . . . . . . . . . . . . . . . . . . . . . . Hacks Repelled . | . . . . . . . . . . . . . . . . . . . . . . . . . . . . . . . Allies | -11 -10 -10 -9 -9 -9 -9 -6 -6 -6 -6 -5 -5 -5 -5 -5 -5 -5 -4 -4 -4 -4 -3 -3 -3 -3 -2 -2 -1 -1 -1 -------- Run | Yrd Mat Min Mat Sto Rec Scr Fac Low Low Zio Pro Fac Was Fac Upp Upp Zhi Pro Fac Upp War Pro Res Qua Frg Res Tes Acc Com Ac0 Total Allies 10 | . . 2 . . . . . . . . . 1 . . . . . . . . . . . 1 . . . 3 3 . Largest Group 3 | . . 2 2 . . . . . . . . 1 1 . . . . . . . . . . 1 . . . 3 3 . Highest-Rated Group 379 | . . 50 50 . . . . . . . . 10 10 . . . . . . . . . . 45 . . . 379 376 . Highest-Rated Ally 135 | . . 31 31 . . . . . . . . 10 10 . . . . . . . . . . 45 . . . 135 132 . Total Orders 3 | . . . . . . . . . . . . . . . . . . . . . . . . 1 . . . . 1 1 STAY 1 | . . . . . . . . . . . . . . . . . . . . . . . . 1 . . . . . . RETURN 2 | . . . . . . . . . . . . . . . . . . . . . . . . . . . . . 1 1 Ally Attacks 113 | . . . 9 . . . . . . . . . . . . . . . . . . . . . . . . 14 52 38 Total Damage 5617 | . . . 166 . . . . . . . . . . . . . . . . . . . . . . . . 450 3279 1722 Kills 10 | . . . 5 . . . . . . . . . . . . . . . . . . . . . . . . 1 1 3 Allies Corrupted 2 | . . . . . . . . . . . . . . . . . . . . . . . . . . . . 1 1 . Allies Melted 3 | . . . . . . . . . . . . . . . . . . . . . 1 . . . 2 . . . . . Intel | -11 -10 -10 -9 -9 -9 -9 -6 -6 -6 -6 -5 -5 -5 -5 -5 -5 -5 -4 -4 -4 -4 -3 -3 -3 -3 -2 -2 -1 -1 -1 ------- Run | Yrd Mat Min Mat Sto Rec Scr Fac Low Low Zio Pro Fac Was Fac Upp Upp Zhi Pro Fac Upp War Pro Res Qua Frg Res Tes Acc Com Ac0 Active Infowar (turns) 18336 | 19 363 288 . . . . 550 243 143 289 131 495 31 338 119 97 74 103 442 96 1031 276 262 388 4493 300 695 3859 1603 1608 Optics 15903 | . . . . . . . . . . . . 88 31 338 119 97 74 103 442 96 1031 276 262 388 4493 300 695 3859 1603 1608 Sensors 4030 | . . . . . . . 321 243 143 289 131 495 31 338 119 82 74 103 395 96 198 228 262 359 123 . . . . . Structural 5294 | . . . . . . . 550 243 143 289 131 495 31 338 119 97 74 103 442 96 1031 276 262 388 186 . . . . . Seismic 670 | 19 363 288 . . . . . . . . . . . . . . . . . . . . . . . . . . . . Cloaking 2967 | . . . . . . . . . . . . . . . . . . . . . 2 . . . 1916 278 442 262 67 . Jamming 1 | . . . . . . . . . . . . 1 . . . . . . . . . . . . . . . . . . Robot Analysis Total 11 | . . . . 1 . 6 . . . . . . . . . . 4 . . . . . . . . . . . . . Derelict Logs Recovered 12 | . . 3 . . . . . 1 2 1 1 . . . 1 1 . 1 . 1 . . . . . . . . . . Drone Launches 12 | . . . . . . . . . . . . . . . . . . . . . . . . . . . . . 6 6 Drone Recoveries 6 | . . . . . . . . . . . . . . . . . . . . . . . . . . . . . 4 2 Exploration | -11 -10 -10 -9 -9 -9 -9 -6 -6 -6 -6 -5 -5 -5 -5 -5 -5 -5 -4 -4 -4 -4 -3 -3 -3 -3 -2 -2 -1 -1 -1 ------------- Run | Yrd Mat Min Mat Sto Rec Scr Fac Low Low Zio Pro Fac Was Fac Upp Upp Zhi Pro Fac Upp War Pro Res Qua Frg Res Tes Acc Com Ac0 Turns Passed 26074 | 204 881 1049 2443 1110 1233 1427 557 243 143 289 131 495 31 338 119 97 74 103 442 96 1031 276 262 388 4546 300 695 3859 1604 1608 Spaces Moved 29015 | 109 435 619 1134 457 760 1115 1429 604 527 1017 403 1307 86 851 331 268 179 333 861 323 1411 458 424 1196 5191 441 1139 357 2141 3109 Core 11 | 11 . . . . . . . . . . . . . . . . . . . . . . . . . . . . . . Treads 2713 | . 264 619 1134 457 239 . . . . . . . . . . . . . . . . . . . . . . . . . Legs 269 | 98 171 . . . . . . . . . . . . . . . . . . . . . . . . . . . . . Wheels 1636 | . . . . . 521 1115 . . . . . . . . . . . . . . . . . . . . . . . . Hover 11275 | . . . . . . . . . . . . . . . . . . . . . . . . . 4088 441 1139 357 2141 3109 Flight 13111 | . . . . . . . 1429 604 527 1017 403 1307 86 851 331 268 179 333 861 323 1411 458 424 1196 1103 . . . . . Fastest Speed 7 | 50 120 160 160 200 123 123 27 27 27 27 27 24 24 24 24 24 24 24 25 25 25 25 20 20 7 33 33 33 33 27 Average Speed 49 | 119 144 160 175 200 149 123 27 27 27 27 27 26 25 24 24 24 24 24 25 25 25 26 20 20 35 33 33 50 33 32 Slowest Speed 240 | 150 160 160 200 200 240 123 28 27 27 27 27 27 27 24 24 93 24 24 25 25 25 95 20 20 120 33 33 90 92 79 Overloaded Moves 148 | . . . . . . . . . . . . . . . . . . . . . . . . . 148 . . . . . Propulsion Burnouts . | . . . . . . . . . . . . . . . . . . . . . . . . . . . . . . . Robots Hopped 77 | . . . . . . . 13 . . . 2 8 . 4 . . . . 6 . 5 . 2 12 25 . . . . . Potential Cave-ins 2 | . . . . . . . . . . . . . . . . . . . . . 2 . . . . . . . . . Cave-ins Triggered . | . . . . . . . . . . . . . . . . . . . . . . . . . . . . . . . Teleports 5 | . . . . . . . . . . . . . . . . . . . . . . . . . 3 . . . 1 1 Exploration Rate (%) 62 | 6 94 96 83 89 98 85 45 77 69 84 64 39 87 21 60 46 63 67 30 52 91 58 19 94 64 16 94 8 46 93 Regions Visited 30 Branch Regions 20 Pre-discovered Areas 20 | . . 2 1 1 7 . 1 . . 2 . . . . 1 1 3 . . 1 . . . . . . . . . . Known Exits Taken 20 | . . . 1 1 1 . 1 1 1 1 1 . . 1 1 . . 1 1 1 1 1 1 1 1 1 . 1 . . Unknown Exits Taken 8 | 1 1 1 . . . 1 . . . . . . . . . 1 1 . . . . . . . . . 1 . 1 . Scrap Searched 33 | . . 2 . . . 11 . 1 1 5 1 . . . 2 2 . 4 . 3 . 1 . . . . . . . . Spaces Dug 278 | . . . 1 2 . . 26 11 . . 5 22 . 18 1 3 . . 25 . 15 37 17 20 10 12 6 11 8 28 Terrain Destroyed 1717 | . . . 1 2 . . 57 11 . . 11 22 . 18 1 53 . . 67 . 43 204 42 20 19 99 105 629 100 213 Melee 162 | . . . 1 2 . . 22 8 . . 2 19 . 15 1 3 . . 21 . 15 . 14 13 7 9 4 3 3 . Projectile 467 | . . . . . . . 4 3 . . 3 3 . 3 . 1 . . 4 . 7 . 3 7 12 45 101 76 41 154 AOE 1029 | . . . . . . . 31 . . . 6 . . . . 49 . . 42 . 21 204 25 . . 45 . 550 56 . Terrain Rammed . | . . . . . . . . . . . . . . . . . . . . . . . . . . . . . . . Walls Destroyed . | . . . . . . . . . . . . . . . . . . . . . . . . . . . . . . . Machines Disabled . | . . . . . . . . . . . . . . . . . . . . . . . . . . . . . . . Actions | -11 -10 -10 -9 -9 -9 -9 -6 -6 -6 -6 -5 -5 -5 -5 -5 -5 -5 -4 -4 -4 -4 -3 -3 -3 -3 -2 -2 -1 -1 -1 --------- Run | Yrd Mat Min Mat Sto Rec Scr Fac Low Low Zio Pro Fac Was Fac Upp Upp Zhi Pro Fac Upp War Pro Res Qua Frg Res Tes Acc Com Ac0 Total 38783 | 149 579 650 1420 581 831 1171 1528 668 526 1030 416 1400 94 953 368 290 204 354 1030 337 2021 605 569 1282 7596 543 1341 3907 2797 3543 Wait 6823 | 10 55 9 98 14 20 46 15 45 . 7 4 48 . 68 37 7 13 21 109 15 499 129 103 46 1756 47 70 3147 333 52 Move 28852 | 108 434 618 1133 456 759 1114 1405 603 526 1016 399 1292 85 842 330 267 178 332 850 322 1402 457 419 1173 5150 440 1138 356 2140 3108 Hop 55 | . . . . . . . 10 . . . 1 7 . 4 . . . . 4 . 3 . 2 10 14 . . . . . Pick Up 231 | 5 9 1 21 10 2 3 2 1 . 2 . 5 3 3 . 1 1 . 3 . 6 . . 3 100 4 4 8 19 15 Fast Attach 144 | 7 1 . 11 7 4 2 8 . . 1 . 3 . 2 . . 4 1 3 . 7 . 1 3 56 . 4 1 9 9 Attach 263 | . 4 2 3 . 1 1 12 3 . . 3 4 2 5 . 3 1 . 10 . 17 4 9 4 47 5 3 37 21 62 Detach 190 | . . . 1 . . . 4 3 . . 3 3 . 5 . 3 . . 9 . 16 3 8 4 26 3 3 34 14 48 Swap 269 | . 1 . 24 11 2 1 2 . . . . 1 2 2 . . . . 1 . 5 5 2 4 47 5 16 102 16 20 Drop 264 | . 4 . 27 14 15 4 13 1 . 3 . 6 2 2 . 1 3 . 2 . 10 . 2 4 112 . 8 6 16 9 Fire 1175 | 19 68 16 100 64 24 . 13 3 . . 4 3 . 4 . 5 . . 9 . 33 7 4 8 167 28 79 212 85 220 Melee 376 | . . . 1 3 . . 29 9 . 1 2 28 . 16 1 3 4 . 30 . 15 . 19 23 75 11 16 4 86 . Ram 2 | . . . . . 2 . . . . . . . . . . . . . . . . . . . . . . . . . Kick . | . . . . . . . . . . . . . . . . . . . . . . . . . . . . . . . Crush 11 | . 3 4 1 1 2 . . . . . . . . . . . . . . . . . . . . . . . . . Escape Stasis 119 | . . . . 1 . . 15 . . . . . . . . . . . . . . . . . 46 . . . 57 . Rewire 1 | . . . . . . . . . . . . . . . . . . . . . . . . . . . . . 1 . Trap . | . . . . . . . . . . . . . . . . . . . . . . . . . . . . . . . Miscellaneous 8 | . . . . . . . . . . . . . . . . . . . . . 8 . . . . . . . . . Route ------- -11/Scrapyard -10/Materials (discovered 4 exits: *Mat x3 / [*Min]) -10/Mines (discovered 2 exits: *Mat x2) -9/Materials (discovered 6 exits: [*Mat x3] / *Min x2 / *Sto) -9/Storage (discovered 2 exits: [*Mat] / *Rec) -9/Recycling (discovered 2 exits: [*Fac] / *Scr) -9/Scraptown (discovered 2 exits: *Fac x2) -6/Factory (discovered 3 exits: *Fac / *Low x2) -6/Lower Caves -6/Lower Caves (discovered 2 exits: Fac / *Zio) -6/Zion -5/Proximity Caves -5/Factory (discovered 8 exits: *Fac x4 / *Upp x2 / *Ext x2) -5/Waste -5/Factory -5/Upper Caves -5/Upper Caves -5/Zhirov -4/Proximity Caves -4/Factory (discovered 4 exits: *Res / *Upp x2 / Arm) -4/Upper Caves -4/Warlord -3/Proximity Caves -3/Research (discovered 3 exits: *Res x2 / *Qua) -3/Quarantine (discovered 3 exits: *Res / [*Sec] / *Frg) -3/Protoforge -2/Research (discovered 2 exits: *Tes x2) -2/Testing -1/Access (discovered 2 exits: Sur / *Com) -1/Command (discovered 3 exits: *Sur x2 / *Ac0) -1/Access_0 To Epsilon Eridani History --------- Turn | Location | Event 20 | -11/Scrapyard | Discovered new exit (range 15) 205 | -11/Scrapyard | Entered Materials 302 | -10/Materials | Build established: Mutant 342 | -10/Materials | Discovered new exit (range 16) 576 | -10/Materials | Lost 4 parts (1p1n1u1w) 659 | -10/Materials | Core integrity fell below 50% 686 | -10/Materials | Discovered new exit (range 10) 877 | -10/Materials | Discovered new exit (range 8) 1075 | -10/Materials | Discovered new exit (range 8) 1086 | -10/Materials | Entered Mines 1213 | -10/Mines | Learned 8 Materials zone layouts 1413 | -10/Mines | Lost 3 parts (1p1u1w) 1574 | -10/Mines | Learned Materials emergency access door positions 1628 | -10/Mines | A weapon hastily lodged in a ceiling crevice suddenly fell to the ground 1647 | -10/Mines | Discovered new exit (range 8) 1744 | -10/Mines | Discovered new exit (range 11) 1790 | -10/Mines | Learned location of Storage (-9) 1879 | -10/Mines | Learned location of Zion (-6) 2013 | -10/Mines | Found a hidden stash of uninstalled traps 2135 | -10/Mines | Entered Materials 2135 | -9/Materials | Accompanied by 2 allies 2135 | -9/Materials | Evolved 2 slots: Propulsion x1, Weapon x1 2136 | -9/Materials | Identified exit to Mines 2136 | -9/Materials | Identified exit to Storage 2140 | -9/Materials | Led the pair of lost Derelicts to an unsafe place 2654 | -9/Materials | Build established: Scavenger-Tank 2856 | -9/Materials | Discovered exit to Mines (range 15) 3142 | -9/Materials | Discovered new exit (range 14) 3749 | -9/Materials | Discovered new exit (range 10) 3934 | -9/Materials | Build established: Tank 3940 | -9/Materials | Discovered new exit (range 8) 3992 | -9/Materials | Repaired Lgt. Treads+ 4359 | -9/Materials | Loaded intel: 16 trap records 4379 | -9/Materials | Learned 8 Materials zone layouts 4408 | -9/Materials | Learned Materials emergency access door positions 4500 | -9/Materials | Learned 2 Storage zone layouts 4578 | -9/Materials | Entered Storage 4579 | -9/Storage | Identified exit to Recycling 5276 | -9/Storage | Discovered new exit (range 12) 5536 | -9/Storage | Learned Recycling recycling unit intel 5560 | -9/Storage | Learned location of 1 exit from Recycling 5561 | -9/Storage | Learned Materials non-interactive machine intel 5614 | -9/Storage | Learned location of 1 exit from Storage 5682 | -9/Storage | Used back door to open Recycling access 5688 | -9/Storage | Entered Recycling 5689 | -9/Recycling | Identified exit to Scraptown 5690 | -9/Recycling | Loaded intel: 6 recycling unit locations 6014 | -9/Recycling | Build established: Scavenger-Tank 6092 | -9/Recycling | Discovered new exit (range 8) 6306 | -9/Recycling | Learned Materials trap positions 6410 | -9/Recycling | Learned Materials non-interactive machine intel 6476 | -9/Recycling | Learned Recycling recycling unit intel 6495 | -9/Recycling | Learned Storage stockpile data 6559 | -9/Recycling | Learned location of 1 exit from Recycling 6859 | -9/Recycling | Core integrity fell below 50% 6889 | -9/Recycling | Scanned before Scraplab entrance 6907 | -9/Recycling | Entered Scraplab 6921 | -9/Recycling | Entered Scraptown 6921 | -9/Scraptown | System corruption cleaned by C-Scrubber 7179 | -9/Scraptown | Build established: Scavenger-Mutant 7203 | -9/Scraptown | Discovered new exit (range 5) 7304 | -9/Scraptown | Visited Junk Repository 7522 | -9/Scraptown | Visited TADAMA 7573 | -9/Scraptown | Visited Awakened 7588 | -9/Scraptown | Visited Scrapoid Research Area 7634 | -9/Scraptown | Visited Bundlers 7731 | -9/Scraptown | Visited UFD Registry 7731 | -9/Scraptown | Registered with UFD as "Technostep" 7770 | -9/Scraptown | Visited LU-1G1's Boring Crew 7789 | -9/Scraptown | Visited Scrapoid Pod Storage 7811 | -9/Scraptown | Visited Scrap Suit Storage 7899 | -9/Scraptown | Discovered new exit (range 5) 7937 | -9/Scraptown | Visited Science Guys 7970 | -9/Scraptown | Visited DA-N13 Charitable Foundation 7984 | -9/Scraptown | Found DCF Scrap (29 items) 8006 | -9/Scraptown | Visited Research Penetration Think Tank 8034 | -9/Scraptown | Visited Sword Containment 8051 | -9/Scraptown | Visited Analyses Database 8081 | -9/Scraptown | Visited Abandonware Association 8119 | -9/Scraptown | Visited Infowarlord's Domain 8125 | -9/Scraptown | Found Exp. Signal Interpreter 8282 | -9/Scraptown | Met Optimus 8282 | -9/Scraptown | Accepted into 0bPrime 8348 | -9/Scraptown | Entered Factory 8348 | -6/Factory | Evolved 6 slots: Propulsion x2, Utility x4 8461 | -6/Factory | Garrison activated, responded to threat 8493 | -6/Factory | Identified exit to Lower Caves 8692 | -6/Factory | Discovered new exit (range 4) 8692 | -6/Factory | Identified exit to Factory 8732 | -6/Factory | Loaded intel: 8 recycling unit locations 8807 | -6/Factory | Learned location of Protoforge (-3) 8823 | -6/Factory | Destroyed 7 combat bots 8905 | -6/Factory | Entered Lower Caves 8916 | -6/Lower Caves | Build established: Scout 8934 | -6/Lower Caves | Encountered a Warlord checkpoint 8981 | -6/Lower Caves | Found Alien Artifact 9042 | -6/Lower Caves | Spotted B-75 Beast 9119 | -6/Lower Caves | Learned Factory trap positions 9143 | -6/Lower Caves | Discovered new exit (range 3) 9144 | -6/Lower Caves | Identified exit to Lower Caves 9148 | -6/Lower Caves | Entered another Lower Caves area 9175 | -6/Lower Caves | Entered an active Warlord outpost 9176 | -6/Lower Caves | Learned Factory emergency access door positions 9177 | -6/Lower Caves | Learned Factory stockpile data 9177 | -6/Lower Caves | Learned Factory garrison access intel 9177 | -6/Lower Caves | Learned Research garrison access intel 9177 | -6/Lower Caves | Learned Extension garrison access intel 9239 | -6/Lower Caves | Encountered a Warlord checkpoint 9288 | -6/Lower Caves | Discovered new exit (range 9) 9290 | -6/Lower Caves | Identified exit to Zion 9291 | -6/Lower Caves | Entered Zion 9304 | -6/Zion | Discovered new exit (range 16) 9322 | -6/Zion | Given the Hacking Drone Bay 9410 | -6/Zion | Acquired unknown access codes intercepted by a Zionite 9444 | -6/Zion | Learned Factory emergency access door positions 9467 | -6/Zion | Turned away by Imprinter 9479 | -6/Zion | Learned Factory terminal intel 9580 | -6/Zion | Identified exit to Proximity Caves 9580 | -6/Zion | Entered Proximity Caves 9671 | -5/Proximity Caves | Discovered exit to Factory (range 7) 9711 | -5/Proximity Caves | Entered Factory 9711 | -5/Factory | Evolved 2 slots: Propulsion x1, Utility x1 9712 | -5/Factory | Loaded intel: 84 trap records 9715 | -5/Factory | Loaded intel: 28 terminal locations 9716 | -5/Factory | Loaded intel: 4 garrison access locations 9832 | -5/Factory | Identified exit to Factory 9863 | -5/Factory | Discovered new exit (range 8) 9874 | -5/Factory | Identified exit to Upper Caves 9874 | -5/Factory | Identified exit to Extension 9972 | -5/Factory | Loaded intel: 8 recycling unit locations 10071 | -5/Factory | Fabricated Mic. Antimatter Reactor? 10180 | -5/Factory | Fabricated Lrn. Sensor Array (x2) 10206 | -5/Factory | Sucked down chute 10206 | -5/Factory | Entered Waste 10217 | -5/Waste | Spotted C-40 Crusher 10217 | -5/Waste | Spotted C-40 Crusher 10218 | -5/Waste | Spotted C-40 Crusher 10221 | -5/Waste | 1 allies followed down the chute 10221 | -5/Waste | EMP discharged 10223 | -5/Waste | Spotted C-40 Crusher 10231 | -5/Waste | Spotted C-40 Crusher 10231 | -5/Waste | Spotted C-40 Crusher 10234 | -5/Waste | Discovered new exit (range 13) 10237 | -5/Waste | Identified exit to Factory 10237 | -5/Waste | Entered Factory 10257 | -5/Factory | Loaded intel: 8 recycling unit locations 10395 | -5/Factory | Discovered exit to Upper Caves (range 15) 10448 | -5/Factory | Repaired Corrupted Impulse Thruster Array? 10575 | -5/Factory | Entered Upper Caves 10623 | -5/Upper Caves | Entered an active Warlord outpost 10624 | -5/Upper Caves | Learned location of 1 exit from Research 10624 | -5/Upper Caves | Learned Factory emergency access door positions 10650 | -5/Upper Caves | Learned location of Armory (-4) 10680 | -5/Upper Caves | Discovered new exit (range 13) 10694 | -5/Upper Caves | Identified exit to Upper Caves 10694 | -5/Upper Caves | Entered another Upper Caves area 10789 | -5/Upper Caves | Discovered new exit (range 8) 10791 | -5/Upper Caves | Entered Zhirov 10791 | -5/Zhirov | Discovered new exit (range 3) 10796 | -5/Zhirov | Met Zhirov 10801 | -5/Zhirov | Learned location of Testing (-2) 10804 | -5/Zhirov | Zhirov requested help retrieving the SGEMP Prototype 10808 | -5/Zhirov | Found Alien Artifact 10808 | -5/Zhirov | Identified Integrated Dissipator 10808 | -5/Zhirov | Installed Integrated Dissipator, increased core heat dissipation (+20) 10813 | -5/Zhirov | Found Alien Artifact 10865 | -5/Zhirov | Entered Proximity Caves 10932 | -4/Proximity Caves | Learned Research security intel 10966 | -4/Proximity Caves | Discovered exit to Factory (range 6) 10968 | -4/Proximity Caves | Entered Factory 10968 | -4/Factory | Evolved 2 slots: Propulsion x1, Utility x1 10991 | -4/Factory | Loaded intel: 8 recycling unit locations 11018 | -4/Factory | Identified exit to Upper Caves 11018 | -4/Factory | Identified exit to Armory 11071 | -4/Factory | Repaired Lrn. Sensor Array 11231 | -4/Factory | Discovered new exit (range 16) 11287 | -4/Factory | Found Exp. Signal Interpreter 11288 | -4/Factory | Found Exp. Signal Interpreter 11373 | -4/Factory | Build established: Hacker-Scout 11388 | -4/Factory | Garrison activated, responded to threat 11410 | -4/Factory | Entered Upper Caves 11462 | -4/Upper Caves | A Derelict revealed a hidden shortcut to "reach the base" 11503 | -4/Upper Caves | Identified exit to Warlord 11506 | -4/Upper Caves | Entered Warlord 11515 | -4/Warlord | System corruption cleaned by Quarantine Array 11667 | -4/Warlord | Found Prototype Hackware 11669 | -4/Warlord | Found Prototype Device 11669 | -4/Warlord | Identified Exp. Cloaking Device 11677 | -4/Warlord | Found Prototype Device 11677 | -4/Warlord | Identified Exp. Focal Shield 11683 | -4/Warlord | Rebuked by Warlord 11699 | -4/Warlord | Warlord's base attacked by MAIN.C 11709 | -4/Warlord | Found Prototype Energy Gun 11709 | -4/Warlord | Identified Vortex Rail 11713 | -4/Warlord | Found Vortex Rail 11942 | -4/Warlord | Lost 3 allies 12004 | -4/Warlord | Build established: Hacker-Sprinter 12033 | -4/Warlord | Spotted Executioner 12049 | -4/Warlord | Warlord forces counterattacked 12095 | -4/Warlord | Lost 3 allies 12099 | -4/Warlord | Spotted Executioner 12163 | -4/Warlord | Lost 9 allies 12250 | -4/Warlord | Spotted Striker 12257 | -4/Warlord | Lost 10 allies 12374 | -4/Warlord | Warlord base infiltrated, sounded retreat 12375 | -4/Warlord | Enhanced Grunt warped into view 12375 | -4/Warlord | Enhanced Grunt warped into view 12375 | -4/Warlord | Enhanced Grunt warped into view 12375 | -4/Warlord | Enhanced Demolisher warped into view 12375 | -4/Warlord | Enhanced Demolisher warped into view 12375 | -4/Warlord | Enhanced Demolisher warped into view 12405 | -4/Warlord | Spotted B-90 Cyclops 12454 | -4/Warlord | Spotted B-90 Cyclops 12462 | -4/Warlord | Spotted Striker 12484 | -4/Warlord | Lost 6 allies 12490 | -4/Warlord | Spotted Executioner 12493 | -4/Warlord | Spotted Striker 12497 | -4/Warlord | Spotted Striker 12525 | -4/Warlord | Spotted Striker 12526 | -4/Warlord | Spotted Executioner 12529 | -4/Warlord | Found Prototype Launcher 12531 | -4/Warlord | Discovered new exit (range 16) 12534 | -4/Warlord | Identified exit to Proximity Caves 12537 | -4/Warlord | Entered Proximity Caves 12658 | -3/Proximity Caves | Identified Exp. Neutron Missile Launcher 12809 | -3/Proximity Caves | Discovered new exit (range 14) 12813 | -3/Proximity Caves | Identified exit to Research 12813 | -3/Proximity Caves | Entered Research 12813 | -3/Research | Evolved 2 slots: Power x1, Propulsion x1 12814 | -3/Research | Identified exit to Research 12816 | -3/Research | Loaded intel: 4 garrison access locations 13007 | -3/Research | Loaded intel: 5 recycling unit locations 13072 | -3/Research | Build established: Hacker-Scout 13073 | -3/Research | Discovered exit to Research (range 9) 13074 | -3/Research | Discovered new exit (range 8) 13075 | -3/Research | Identified exit to Quarantine 13075 | -3/Research | Entered Quarantine 13103 | -3/Quarantine | Found Alien Slashing Weapon 13103 | -3/Quarantine | Identified Sigix Broadsword 13105 | -3/Quarantine | Identified System Mapper 13189 | -3/Quarantine | Central database locked down 13248 | -3/Quarantine | Discovered exit to Research (range 8) 13250 | -3/Quarantine | Cryocooling Duct disabled 13265 | -3/Quarantine | Ambient heat levels rising (+20) 13265 | -3/Quarantine | Non-combat units ordered to evacuate 13279 | -3/Quarantine | Found Alien Artifact 13318 | -3/Quarantine | Found Alien Artifact 13318 | -3/Quarantine | Identified Dimensional Node Initializer (x2) 13318 | -3/Quarantine | Initialized slip node 13414 | -3/Quarantine | Found Launcher Loader 13442 | -3/Quarantine | Spotted Fortress 13456 | -3/Quarantine | Discovered new exit (range 6) 13456 | -3/Quarantine | Discovered new exit (range 6) 13457 | -3/Quarantine | Identified exit to Protoforge 13463 | -3/Quarantine | Entered Protoforge 13534 | -3/Protoforge | Discovered exit to Research (range 22) 13561 | -3/Protoforge | Spotted Hotshot 13561 | -3/Protoforge | Spotted Hotshot 13585 | -3/Protoforge | Superfortress began startup sequence 13586 | -3/Protoforge | Spotted V934-n 13616 | -3/Protoforge | Spotted EXE-6 13616 | -3/Protoforge | Spotted EXE-6 13621 | -3/Protoforge | UFD initiated attack on Protoforge (Readiness: %1) 13621 | -3/Protoforge | Loaded intel: 3 recycling unit locations 13656 | -3/Protoforge | P-80 Master assimilated allied 03F18-D 13657 | -3/Protoforge | Optimus greeted in Protoforge 13659 | -3/Protoforge | Found Prototype Processor 13659 | -3/Protoforge | Identified Exp. Core Analyzer 13662 | -3/Protoforge | Found Prototype Ballistic Gun 13663 | -3/Protoforge | Found Prototype Ballistic Gun 13667 | -3/Protoforge | Found Prototype Processor 13667 | -3/Protoforge | Identified Exp. Armor Integrity Analyzer 13673 | -3/Protoforge | Spotted SKR-2 13687 | -3/Protoforge | Spotted SKR-2 13688 | -3/Protoforge | Lost 3 allies 13699 | -3/Protoforge | Spotted SKR-2 13700 | -3/Protoforge | Identified Transdimensional Reconstructor 13700 | -3/Protoforge | Identified Cep. XC Strikerail (x2) 13700 | -3/Protoforge | Forge Plexus network access discovered 13711 | -3/Protoforge | Spotted EXE-6 13711 | -3/Protoforge | Spotted EXE-6 13722 | -3/Protoforge | Identified Subatomic Replicator 13722 | -3/Protoforge | Used Subatomic Replicator to create Alien Artifact 13727 | -3/Protoforge | Initialized slip node 13772 | -3/Protoforge | Identified Supercharged TR 13772 | -3/Protoforge | Warped through subspace to slip node 13849 | -3/Protoforge | Lost 3 parts (1p1u1w) 13869 | -3/Protoforge | Spotted Immortal 13876 | -3/Protoforge | Spotted Striker 13896 | -3/Protoforge | Destroyed Striker 13900 | -3/Protoforge | Spotted Executioner 13913 | -3/Protoforge | Destroyed Executioner 13979 | -3/Protoforge | Found Crosscalibrator 14136 | -3/Protoforge | Found Faulty Cep. XC Strikerail 14138 | -3/Protoforge | Found Faulty Cep. XC Strikerail 14140 | -3/Protoforge | Spotted V235-e 14141 | -3/Protoforge | Spotted V818-z 14141 | -3/Protoforge | Spotted V371-m 14141 | -3/Protoforge | Found Exp. Jetlance 14240 | -3/Protoforge | UFD reported confirmed Drillbomb installation 14281 | -3/Protoforge | UFD reported confirmed Drillbomb installation 14372 | -3/Protoforge | Destroyed Immortal 14377 | -3/Protoforge | Found Prototype Device 14377 | -3/Protoforge | Identified Cep. Antimissile System 14382 | -3/Protoforge | Spotted Decapitator 14382 | -3/Protoforge | Spotted Decapitator 14382 | -3/Protoforge | Spotted Decapitator 14382 | -3/Protoforge | Spotted Decapitator 14386 | -3/Protoforge | Destroyed Decapitator 14393 | -3/Protoforge | Destroyed Decapitator 14418 | -3/Protoforge | Lost 3 parts (2n1u) 14504 | -3/Protoforge | UFD reported confirmed Drillbomb installation 14577 | -3/Protoforge | Spotted V978-h 14577 | -3/Protoforge | Spotted V544-x 14577 | -3/Protoforge | Spotted V801-g 14612 | -3/Protoforge | Destroyed V801-g 14626 | -3/Protoforge | Destroyed V978-h 14629 | -3/Protoforge | Found Prototype Launcher 14630 | -3/Protoforge | Identified Enh. Gamma Bomb Array 14658 | -3/Protoforge | Destroyed V544-x 14661 | -3/Protoforge | UFD reported confirmed Drillbomb installation 14718 | -3/Protoforge | Build established: Hacker-Sprinter 14793 | -3/Protoforge | Found Cep. Gyrokinetic System 14797 | -3/Protoforge | Found Corrupted Exp. Active Sensor Suite 14800 | -3/Protoforge | Found Faulty Exp. Active Sensor Suite 14816 | -3/Protoforge | Spotted V029-t 14822 | -3/Protoforge | Core integrity fell below 50% 14874 | -3/Protoforge | Spotted Striker 14875 | -3/Protoforge | Spotted Executioner 14898 | -3/Protoforge | Found Exp. Jetlance 14936 | -3/Protoforge | Destroyed Striker 14944 | -3/Protoforge | Destroyed Executioner 14970 | -3/Protoforge | UFD reported confirmed Drillbomb installation 14981 | -3/Protoforge | Destroyed 7 combat bots 15033 | -3/Protoforge | Spotted Decapitator 15033 | -3/Protoforge | Spotted Decapitator 15042 | -3/Protoforge | Destroyed Decapitator 15044 | -3/Protoforge | Destroyed Decapitator 15187 | -3/Protoforge | Found Cep. RG22 Armor 15190 | -3/Protoforge | Found Cep. Core Shell 15226 | -3/Protoforge | UFD reported confirmed Drillbomb installation 15246 | -3/Protoforge | Spotted AP7-3 15247 | -3/Protoforge | Spotted AP7-3 15271 | -3/Protoforge | Spotted Immortal 15271 | -3/Protoforge | Spotted Immortal 15374 | -3/Protoforge | Destroyed Immortal 15387 | -3/Protoforge | Build established: Scavenger-Sprinter 15403 | -3/Protoforge | Destroyed Immortal 15419 | -3/Protoforge | Found Exp. Jetlance 15489 | -3/Protoforge | Destroyed AP7-3 15498 | -3/Protoforge | Destroyed AP7-3 15519 | -3/Protoforge | Lost 3 parts (1n2w) 15520 | -3/Protoforge | Found Cep. Core Shell 15540 | -3/Protoforge | Found Cep. Impact Drone Bay 15543 | -3/Protoforge | Found Cep. Cloak Mesh 15547 | -3/Protoforge | Found Faulty Cep. Cloak Mesh 15730 | -3/Protoforge | Spotted V243-m 15733 | -3/Protoforge | Spotted V092-j 15735 | -3/Protoforge | Found Cep. Antigrav Storage Unit 15739 | -3/Protoforge | Found Cep. NT7 Matterbank 15741 | -3/Protoforge | Found Cep. NT7 Matterbank 15743 | -3/Protoforge | Found Prototype Device 15744 | -3/Protoforge | Found Prototype Device 15778 | -3/Protoforge | Build established: Scavenger-Mutant 15778 | -3/Protoforge | Found Cep. Energy Mantle 15779 | -3/Protoforge | Found Cep. Reaction Jets 15781 | -3/Protoforge | Found Cep. Core Shell 15782 | -3/Protoforge | Identified Cep. Matter Streamer (x2) 15792 | -3/Protoforge | Found Cep. Energy Mantle 15797 | -3/Protoforge | Found Cep. Beam Splitter 15905 | -3/Protoforge | Additional patrols dispatched to research labs 15907 | -3/Protoforge | Found Cep. Navigation Harness 15916 | -3/Protoforge | Found Transdimensional Reconstructor 15952 | -3/Protoforge | Found Cep. Thermoelectric Network 15954 | -3/Protoforge | Found Faulty Cep. Core Analysis Suite 15956 | -3/Protoforge | Found Cep. Core Analysis Suite 16067 | -3/Protoforge | Found Faulty Cep. Plasma Driver 16068 | -3/Protoforge | Found Faulty Cep. Heavy Railcannon 16071 | -3/Protoforge | Found Cep. Heavy Railcannon 16077 | -3/Protoforge | Found Faulty Cep. Plasma Driver 16102 | -3/Protoforge | Found Cep. Fieldthrust Drive 16464 | -3/Protoforge | Spotted V172-x 16474 | -3/Protoforge | Found Faulty Cep. Disintegration Ray 16475 | -3/Protoforge | Found Faulty Cep. Disintegration Ray 16478 | -3/Protoforge | Found Cep. XC Strikerail 16501 | -3/Protoforge | Spotted Decapitator 16501 | -3/Protoforge | Spotted Decapitator 16501 | -3/Protoforge | Spotted V973-p 16501 | -3/Protoforge | Spotted V095-n 16621 | -3/Protoforge | System corruption reached 10% 16646 | -3/Protoforge | Destroyed V973-p 16727 | -3/Protoforge | Spotted Decapitator 16742 | -3/Protoforge | Found Cep. Weapon Articulator 16744 | -3/Protoforge | Found Exp. Kinecellerator 16745 | -3/Protoforge | Found Cep. Weapon Articulator 16749 | -3/Protoforge | Found Faulty Femtoactuators 16751 | -3/Protoforge | Found Exp. Force Booster 16752 | -3/Protoforge | Found Faulty Exp. Force Booster 16761 | -3/Protoforge | Found Exp. Kinecellerator 16762 | -3/Protoforge | Found Cep. Weapon Articulator 16779 | -3/Protoforge | Destroyed Decapitator 16783 | -3/Protoforge | Destroyed Decapitator 16791 | -3/Protoforge | Destroyed Decapitator 16837 | -3/Protoforge | Found Prototype Hover Unit 16837 | -3/Protoforge | Identified Cep. Combat Aerolev Unit 16963 | -3/Protoforge | Found Cep. Gyrokinetic System 16966 | -3/Protoforge | Found Faulty Cep. Gyrokinetic System 16988 | -3/Protoforge | Found Faulty Cep. Biometal Exoskeleton 17119 | -3/Protoforge | Spotted V891-r 17123 | -3/Protoforge | Found Faulty Cep. Zero-point Core 17125 | -3/Protoforge | Found Cep. Zero-point Core 17141 | -3/Protoforge | Found Faulty Cep. Zero-point Core 17238 | -3/Protoforge | Found Cep. Combat Aerolev Unit 17388 | -3/Protoforge | Found Cep. Gyrokinetic System 17644 | -3/Protoforge | Spotted V142-a 17644 | -3/Protoforge | Spotted V774-c 17647 | -3/Protoforge | Found Cep. Antigrav Storage Unit 17874 | -3/Protoforge | Build established: Hacker-Sprinter 17983 | -3/Protoforge | Spotted Striker 17994 | -3/Protoforge | Spotted Executioner 17994 | -3/Protoforge | Spotted Executioner 18003 | -3/Protoforge | Spotted Striker 18004 | -3/Protoforge | Spotted Executioner 18009 | -3/Protoforge | Entered Research 18009 | -2/Research | Evolved 2 slots: Utility x1, Weapon x1 18032 | -2/Research | Lost 3 allies 18112 | -2/Research | Discovered new exit (range 18) 18122 | -2/Research | Identified exit to Testing 18215 | -2/Research | Unchained authorized (GL-D0S) 18272 | -2/Research | Destroyed 7 combat bots 18309 | -2/Research | Entered Testing 18341 | -2/Testing | Spotted Striker 18341 | -2/Testing | Spotted Striker 18353 | -2/Testing | Destroyed Striker 18363 | -2/Testing | Destroyed Striker 18393 | -2/Testing | Spotted Striker 18393 | -2/Testing | Spotted Striker 18402 | -2/Testing | Spotted Alpha 7 18403 | -2/Testing | Destroyed Striker 18405 | -2/Testing | Destroyed Striker 18411 | -2/Testing | Destroyed Alpha 7 18549 | -2/Testing | Stole the SGEMP Prototype 18559 | -2/Testing | First assault squad dispatched 18568 | -2/Testing | Spotted PG-YO8M5OKJ8W 18631 | -2/Testing | Discovered new exit (range 4) 18642 | -2/Testing | Found Prototype Energy Cannon 18642 | -2/Testing | Identified Cld. Nova Cannon 18645 | -2/Testing | Protovariant out of control (PG-YO8M5OKJ8W) 18806 | -2/Testing | Destroyed 9 combat bots 19004 | -2/Testing | Entered Access 19004 | -1/Access | Evolved 2 slots: Power x1, Utility x1 19005 | -1/Access | Delivered the SGEMP Prototype to Zhirov 19005 | -1/Access | Zhirov transferred Access data 19006 | -1/Access | Loaded intel: 111 machine locations 19006 | -1/Access | Loaded intel: 86 trap records 19006 | -1/Access | Identified exit to Surface 19006 | -1/Access | Discovered exit to Surface (range 237) 19006 | -1/Access | Identified exit to Command 19006 | -1/Access | Discovered exit to Command (range 135) 19127 | -1/Access | Zhirov warped through subspace 19178 | -1/Access | Destroyed 7 combat bots 19220 | -1/Access | Unchained authorized (GL-D0S) 19254 | -1/Access | First assault squad dispatched 19410 | -1/Access | Build established: Sprinter 19896 | -1/Access | Build established: Mutant 20432 | -1/Access | Build established: Sprinter 20882 | -1/Access | Destroyed 9 combat bots 21548 | -1/Access | Destroyed 9 combat bots 21663 | -1/Access | Garrison activated, responded to threat 21697 | -1/Access | Destroyed 19 combat bots 21989 | -1/Access | Destroyed 8 combat bots 22210 | -1/Access | Destroyed 11 combat bots 22315 | -1/Access | High security lockdown imminent 22395 | -1/Access | High security lockdown engaged 22511 | -1/Access | Destroyed 8 combat bots 22658 | -1/Access | Destroyed 8 combat bots 22701 | -1/Access | Destroyed Investigator 22829 | -1/Access | Spotted Striker 22846 | -1/Access | Destroyed Striker 22863 | -1/Access | Entered Command 22880 | -1/Command | System corruption reached 10% 22880 | -1/Command | High security lockdown imminent 22920 | -1/Command | Spotted M Guard 22920 | -1/Command | Spotted M Guard 22920 | -1/Command | Spotted Combat Programmer 22922 | -1/Command | Destroyed 9 combat bots 22923 | -1/Command | Spotted Combat Programmer 22946 | -1/Command | Destroyed Combat Programmer 22960 | -1/Command | High security lockdown engaged 22970 | -1/Command | Destroyed Combat Programmer 22994 | -1/Command | Destroyed 8 combat bots 23007 | -1/Command | Lost 4 parts (3u1w) 23027 | -1/Command | Destroyed M Guard 23040 | -1/Command | Destroyed M Guard 23040 | -1/Command | All MAIN.C guards destroyed 23047 | -1/Command | Found Corrupted Prototype Protection 23047 | -1/Command | Identified Hvy. Regenerative Plating 23048 | -1/Command | Found Corrupted Prototype Device 23052 | -1/Command | Found Corrupted Prototype Reactor 23055 | -1/Command | Found Corrupted Prototype Reactor 23056 | -1/Command | Found Corrupted Prototype Launcher 23219 | -1/Command | Met MAIN.C 23221 | -1/Command | 0b10 Conduit disabled 23232 | -1/Command | MAIN.C activated Command garrisons 23246 | -1/Command | Allies destroyed MAIN.C Shell 23253 | -1/Command | Zhirov arrived to use SGEMP to disable MAIN.C 23333 | -1/Command | Discovered exit to Surface (range 9) 23363 | -1/Command | Found Exp. System Purifier 23506 | -1/Command | Found Hvy. Regenerative Plating 23511 | -1/Command | Identified AEGIS Remote Shield 23514 | -1/Command | Identified Zero-point Reactor (x2) 23764 | -1/Command | Found Prototype Processor 23764 | -1/Command | Identified Exp. Targeting Computer 23770 | -1/Command | Discovered exit to Surface (range 8) 23799 | -1/Command | Found Exp. Core Analyzer 23899 | -1/Command | Identified Hellfire Missile Launcher 23899 | -1/Command | Discovered exit to Surface (range 48) 23899 | -1/Command | Discovered exit to Surface (range 97) 23899 | -1/Command | Extracted map data and part IDs from MAIN.C's data core 23932 | -1/Command | Found Perforator 23940 | -1/Command | Found Spectral Analyzer 23944 | -1/Command | Found Adv. Kinecellerator 24136 | -1/Command | Found Omega Cannon 24461 | -1/Command | Warped through subspace to slip node 24461 | -1/Command | Discovered new exit (range 5) 24467 | -1/Command | Entered Access_0 24470 | -1/Access_0 | Met Architect 24472 | -1/Access_0 | Architect warped through subspace 24486 | -1/Access_0 | Allies destroyed A8 24523 | -1/Access_0 | Architect warped through subspace 24537 | -1/Access_0 | Subspace Access Node disabled 24562 | -1/Access_0 | Architect warped through subspace 24576 | -1/Access_0 | A6 warped into view 24577 | -1/Access_0 | Destroyed A6 24628 | -1/Access_0 | Architect warped through subspace 24672 | -1/Access_0 | Architect warped through subspace 24679 | -1/Access_0 | Found Exp. Weapon Cycler 24683 | -1/Access_0 | Architect warped through subspace 24693 | -1/Access_0 | A5 warped into view 24698 | -1/Access_0 | Destroyed A5 24702 | -1/Access_0 | Architect warped through subspace 24738 | -1/Access_0 | Architect warped through subspace 24764 | -1/Access_0 | Architect warped through subspace 24781 | -1/Access_0 | Architect warped through subspace 24800 | -1/Access_0 | Architect warped through subspace 24812 | -1/Access_0 | Subspace Access Node disabled 24819 | -1/Access_0 | Architect warped through subspace 24845 | -1/Access_0 | Found Core Expander 24845 | -1/Access_0 | Installed Core Expander, added new Power slot 24849 | -1/Access_0 | Architect warped through subspace 24872 | -1/Access_0 | Architect warped through subspace 24891 | -1/Access_0 | Architect warped through subspace 24902 | -1/Access_0 | Architect warped through subspace 24909 | -1/Access_0 | Subspace Access Node disabled 24910 | -1/Access_0 | A4 warped into view 24913 | -1/Access_0 | Destroyed A4 24921 | -1/Access_0 | Architect warped through subspace 24933 | -1/Access_0 | Architect warped through subspace 24936 | -1/Access_0 | Build established: Scavenger-Sprinter 24940 | -1/Access_0 | Architect warped through subspace 24940 | -1/Access_0 | Subspace Access Node disabled 25085 | -1/Access_0 | Destroyed A2 25086 | -1/Access_0 | Extracted Singularity Gate Test 138-C access codes from A2's data core 25126 | -1/Access_0 | Started Test 138-B, establishing a local singularity 25128 | -1/Access_0 | Singularity Gate disabled 25194 | -1/Access_0 | Destroyed Architect 25203 | -1/Access_0 | Core integrity fell below 50% 25246 | -1/Access_0 | Build established: Generator-Mutant 25248 | -1/Access_0 | Extracted unknown sensor trigger ID from Architect's data core 25250 | -1/Access_0 | Found Hpw. Transdimensional Reconstructor 25385 | -1/Access_0 | Found Exp. Weapon Cycler 25388 | -1/Access_0 | Found Prototype Device 25388 | -1/Access_0 | Identified Desublimator 25392 | -1/Access_0 | Found Exp. Weapon Cycler 25420 | -1/Access_0 | Found Sigix Corpse 25560 | -1/Access_0 | A3 warped into view 25577 | -1/Access_0 | Destroyed A3 25682 | -1/Access_0 | Build established: Generator-Sprinter 26058 | -1/Access_0 | Found Integrity Redistributor 26071 | -1/Access_0 | Warped through subspace to slip node 26071 | -1/Access_0 | Discovered exit to Surface (range 8) 26075 | *** | Escaped! Last Messages --------------- >>Record "Log L.JSI57FRK" [REDACTED] >>Record "Log L.OZLVE4D5" [REDACTED] >>Record "Log L.QL67S5A3" [REDACTED] >>Record "Log L.RSL58V7F" [REDACTED] >>Record! "Log L.UHGC2ASH" Despite Warlord's aggressive stance, the Derelict army has been surprisingly slow to make its move. They're doing almost too much planning and preparation... >>Record "Log L.XLJZXWC5" [REDACTED] >>Record "Log L.Y1U23ASU" [REDACTED] 26071_ Warped through subspace, drawn to slip node. 26071_ EXIT=FOUND: SURFACE Map ----- +----------------------------------------------------+ | | | | | | | | | | | | | | | | | | | | | | | | | | | | | | | | | ?????????????????????????????????????????????????? | | ?????????????????????????????????????????????????? | | ?????????????????????????????????????????????????? | | ?????????????????????????????????????????????????? | | ?????????????????????????????????????????????????? | | ?????????????????????????????????????????????????? | | ????????????????????????###??????????????????????? | | ???????????????????????## ##?????????????????????? | | ???????????????????????# #?????????????????????? | | ???????????????????????# @ #?????????????????????? | | ??????????????????????## #?????????????????????? | | ??????????????????????# #?????????????????????? | | ??????????????????????# ##?????????????????????? | | ??????????????????????## #?????????????????????? | | ??????????????????????# #?????????????????????? | | ??????????????????????# ##?????????????????????? | | ??????????????????????# < #?????????????????????? | | ??????????????????????# ##?????????????????????? | | ??????????????????????## #??????????????????????? | | ???????????????????????####??????????????????????? | | ?????????????????????????????????????????????????? | | ?????????????????????????????????????????????????? | | ?????????????????????????????????????????????????? | | ?????????????????????????????????????????????????? | | ?????????????????????????????????????????????????? | | ?????????????????????????????????????????????????? | | ?????????????????????????????????????????????????? | | ?????????????????????????????????????????????????? | | ?????????????????????????????????????????????????? | | ?????????????????????????????????????????????????? | | ?????????????????????????????????????????????????? | | ?????????????????????????????????????????????????? | | ?????????????????????????????????????????????????? | | ?????????????????????????????????????????????????? | +----------------------------------------------------+ Best States ------------- Heat Dissipation 72 Energy Generation 89 Energy Capacity 1450 Matter Stores 722 Matter Capacity 800 Sight Range 24 Robot Scan Range 18 Terrain Scan Density 10 Cloak Strength 9 Additional Mass Support 20 Corruption Block 1 Armor Coverage 600 Resistance: TH 75 Core Shielding 90 Propulsion Shielding 33 Utility Shielding 90 Weapon Shielding 90 Point Defense Rating 480 Weapon Cycling 30 Phase Shifting 15 Evasion (%) 91 Targeting Accuracy 30 Core Analysis 11 Armor Integrity Analysis 50 Recoil Reduction 3 Matter Filtering 50 Kinecelleration 66 Offensive Hacking 46 Authchip Count 1 Item Schematics ----------------- Hvy. Missile Launcher | -9/Storage | Hacked Adv. ECM Suite | -9/Recycling | Hacked Visual Processing Unit | -9/Recycling | Hacked Phase Shifter | -6/Zion | Archive Adv. System Shield | -6/Zion | Archive Proton Cannon | -6/Zion | Archive Imp. Plasma Cutter | -6/Zion | Archive Imp. Heavy Armor Plating | -6/Zion | Archive Remote Force Field | -6/Zion | Archive Imp. Actuator Array | -6/Zion | Archive Railgun | -6/Zion | Archive Centrium Wheel | -6/Zion | Archive Lgt. Angular Momentum Engine | -6/Zion | Archive Lrn. Tractor Beam | -6/Zion | Archive Coil Gun | -6/Zion | Archive Imp. Focal Shield | -6/Zion | Archive Imp. Medium Treads | -6/Zion | Archive Enh. Gauss Cannon | -6/Zion | Archive Imp. KE Penetrator | -6/Zion | Archive Exp. Heat Sink | -5/Zhirov | Free Assault Drone Bay | -5/Zhirov | Free Exp. Optical Array | -5/Zhirov | Free Imp. Arc Thrower | -5/Zhirov | Free Adv. Variable Charge Gun | -3/Protoforge | Archive Com. Mass Driver | -3/Protoforge | Archive Gravity Flail | -3/Protoforge | Archive Exp. Focal Shield | -3/Protoforge | Archive Centrium Medium Armor Plating | -3/Protoforge | Archive Adv. Myomer Leg | -3/Protoforge | Archive Imp. Energy Well | -3/Protoforge | Archive Lgt. Antimatter Cannon | -3/Protoforge | Archive Shock Maul | -3/Protoforge | Archive Cld. Plasma Rifle | -3/Protoforge | Archive Exp. Flexi-carbon Leg | -3/Protoforge | Archive Prc. Matter Filter | -3/Protoforge | Archive Electron Diverter | -3/Protoforge | Archive Molecular Scythe | -2/Testing | Archive Exp. Biometal Heavy Treads | -2/Testing | Archive Exp. Coolant Injector | -2/Testing | Archive Diametric Drive | -2/Testing | Archive Adv. Plasma Rifle | -2/Testing | Archive Graviton Cannon | -2/Testing | Archive Centrium Heavy Treads | -2/Testing | Archive Exp. Shield Generator | -2/Testing | Archive Hds. Centrium Leg | -2/Testing | Archive Adv. Quantum Shading Machine | -2/Testing | Archive Exp. Actuator Array | -2/Testing | Archive Imp. Q-thruster | -2/Testing | Archive Robot Schematics ------------------ O-24 Administrator | -6/Zion | Archive E-15 Imp | -6/Zion | Archive L-41 Fighter | -6/Zion | Archive B-74 Champion | -3/Protoforge | Archive K-01 Serf | -3/Protoforge | Archive M-30 Cleanser | -3/Protoforge | Archive S-43 Plague | -3/Protoforge | Archive O-32 Director | -3/Protoforge | Archive C-55 Analyst | -2/Testing | Archive A-02 Transporter | -2/Testing | Archive Fabricated ------------ Mic. Antimatter Reactor | x2 | -5/Factory | Preloaded Lrn. Sensor Array | x2 | -5/Factory | Preloaded Repaired ---------- Lgt. Treads | 69% | -9/Materials Impulse Thruster Array | 13% | -5/Factory | Corrupted Lrn. Sensor Array | 7% | -4/Factory Studied --------- Lgt. Treads | -9/Materials | Hacked Imp. Ion Engine | -6/Factory | Hacked Lgt. Ion Engine | -6/Factory | Hacked Lgt. Fission Core | -4/Factory | Hacked Mic. Antimatter Reactor | -3/Quarantine | Hacked Impulse Thruster Array | -3/Quarantine | Hacked Mic. Fission Core | -3/Quarantine | Hacked Nuclear Pulse Array | -3/Quarantine | Hacked Alien Tech Used ----------------- Integrated Dissipator Sigix Broadsword Dimensional Node Initializer Subatomic Replicator Supercharged TR Transdimensional Reconstructor Core Expander High-powered Transdimensional Reconstructor Achievements -------------- All Kinds Of Bad News Challenges ------------ None Game ------ Seed JunkLightSegregator Manual? 0 Play Time 07:09:07 Cumulative 386.9 hours Start 2025.11.03 @ 00:24:31 End 2025.11.04 @ 01:47:12 Sessions 3 Manual Loads 0 Difficulty Rogue Special Mode None Game No. 151 Rogue 151 Adventurer 0 Explorer 0 Win Type 0 Total 28 Types 2/2/13/0/0/1/8/0/1/1 Lore% 83 Gallery% 71 Achievement% 63 Wizard Run 0 Options --------- Layout 1 ASCII 0 Keyboard 0 Movement Arrows Keybinds 0 Fullscreen 2 Font 24/Terminus Map View 50x35 Zoom Use 0% Tactical HUD 1 Map Filters NONE Filters NONE Steam 1 RUN: 1d289161-9115-4ff3-aa8b-a4fa1fa72476